{"text_format":"1","workbook":"xlsx","n_sheets":29,"sheets":["Risk","Crop","Log_TPL","Pests","Lists","Costs","Logos","Pest_Report","WGRCG","WGRGG","WABCL","WPNS","ISWD","ISW","WGRAB","WABBM","WABCG","WABCW","WABCEP","WABHB","WPC","WPCD","WPD","WPRS","FRA","FRB","CRA","CRPHY","ITSSM"],"not_rendered":{"charts":3,"images":4,"macros":1,"external_links":0,"defined_names":226,"comments":0,"pivot_tables":0},"unopened":[],"bounds":{"document_bytes":16777216,"sheet_cells":100000,"rows_first":2000,"rows_last":500,"rows_between":2000,"halvings":0,"cell_chars":16384,"cell_head_chars":4096},"cells_cut":0,"cells_raw":0,"read":"whole","date_system":"1900"}

{"sheet":"Risk","index":0,"n_rows":48,"n_cols":21,"rows_kept":48,"cut":false,"hidden":false,"merged":[[5,6,5,7],[5,9,5,12],[5,13,5,16],[5,17,5,20],[8,6,8,7],[8,9,8,12],[8,13,8,16],[8,17,8,20],[1,5,1,6],[2,6,2,7],[2,9,2,12],[2,13,2,16],[2,17,2,20],[23,6,23,7],[23,9,23,12],[23,13,23,16],[23,17,23,20],[30,6,32,20],[12,6,12,7],[12,9,12,12],[12,13,12,16],[12,17,12,20],[19,6,19,7],[19,9,19,12],[19,13,19,16],[19,17,19,20]]}
[]
[]
[null,null,null,"Crop Practices",null,null,"Crown Rots",null,"Index","Low",null,null,null,"Med",null,null,null,"High"]
[null,null,null,"Cultivar","Sweet Charlie",null,null,"Anthracnose Crown Rot",{"$f":"CRA_RiskIndex","v":65},65,65,65,65,65,65,65,65,65,65,65,65]
[null,null,null,"Production Season","Spring",null,null,"Phytophthora Root Rot",{"$f":"CRPHY_RiskIndex","v":60},60,60,60,60,60,60,60,60,60,60,60,60]
[null,null,null,"Rotation Period","Continuous",null,"Fruit Rots",null,"Index","Low",null,null,null,"Med",null,null,null,"High"]
[null,null,null,"Transplants","Not clean",null,null,"Anthracnose Fruit Rot",{"$f":"FRA_RiskIndex","v":60},60,60,60,60,60,60,60,60,60,60,60,60]
[null,null,null,"Equipment",null,null,null,"Gray Mold (Botrytis)",{"$f":"FRB_RiskIndex","v":55},55,55,55,55,55,55,55,55,55,55,55,55]
[null,null,null,"Sanitation","No",null,"Insects",null,"Index","Low",null,null,null,"Med",null,null,null,"High"]
[null,null,null,"Field",null,null,null,"Spotted Wing Drosophila",{"$f":"ISWD_RiskIndex","v":30},30,30,30,30,30,30,30,30,30,30,30,30]
[null,null,null,"Prior Land Use","Turf",null,null,"Strawberry Weevil",{"$f":"ISW_RiskIndex","v":45},45,45,45,45,45,45,45,45,45,45,45,45]
[null,null,null,"Soil Drainage","Poor",null,null,"Two Spotted Spider Mite",{"$f":"ITSSM_RiskIndex","v":53},53,53,53,53,53,53,53,53,53,53,53,53]
[null,null,null,"Weed Presence","High",null,"Weeds (Annual Broadleaves)",null,"Index","Low",null,null,null,"Med",null,null,null,"High"]
[null,null,null,"Field Practices",null,null,null,"Black Medic",{"$f":"WABBM_RiskIndex","v":90},90,90,90,90,90,90,90,90,90,90,90,90]
[null,null,null,"Bed Management","None or minimal",null,null,"Carolina Geranium",{"$f":"WABCG_RiskIndex","v":95},95,95,95,95,95,95,95,95,95,95,95,95]
[null,null,null,"Bed Mulch","Clear Plastic",null,null,"Chickweed",{"$f":"WABCW_RiskIndex","v":90},90,90,90,90,90,90,90,90,90,90,90,90]
[null,null,null,"Fertility Program","Standard",null,null,"Common Lambsquarters",{"$f":"WABCL_RiskIndex","v":90},90,90,90,90,90,90,90,90,90,90,90,90]
[null,null,null,"Row Middles","Bare ground",null,null,"Cutleaf Evening Primrose",{"$f":"WABCEP_RiskIndex","v":90},90,90,90,90,90,90,90,90,90,90,90,90]
[null,null,null,"Pest History",null,null,null,"Henbit",{"$f":"WABHB_RiskIndex","v":85},85,85,85,85,85,85,85,85,85,85,85,85]
[null,null,null,"Anthracnose Crown Rot","Within last 2 years",null,"Weeds (Annual Grasses)",null,"Index","Low",null,null,null,"Med",null,null,null,"High"]
[null,null,null,"Anthracnose Fruit Rot","Within last 2 years",null,null,"Annual Bluegrass",{"$f":"WGRAB_RiskIndex","v":100},100,100,100,100,100,100,100,100,100,100,100,100]
[null,null,null,"Gray Mold Fruit Rot","Within last 2 years",null,null,"Crabgrass",{"$f":"WGRCG_RiskIndex","v":100},100,100,100,100,100,100,100,100,100,100,100,100]
[null,null,null,"Phytophthora Root Rot","Within last 2 years",null,null,"Goosegrass",{"$f":"WGRGG_RiskIndex","v":100},100,100,100,100,100,100,100,100,100,100,100,100]
[null,null,null,"Pest Management",null,null,"Weeds (Perennials)",null,"Index","Low",null,null,null,"Med",null,null,null,"High"]
[null,null,null,"Fumigation","No",null,null,"Clover",{"$f":"WPC_RiskIndex","v":100},100,100,100,100,100,100,100,100,100,100,100,100]
[null,null,null,"Fungicides","None",null,null,"Curly Dock",{"$f":"WPCD_RiskIndex","v":85},85,85,85,85,85,85,85,85,85,85,85,85]
[null,null,null,"Insecticides","None",null,null,"Dandelion",{"$f":"WPD_RiskIndex","v":100},100,100,100,100,100,100,100,100,100,100,100,100]
[null,null,null,"Weather Conditions",null,null,null,"Nutsedges",{"$f":"WPNS_RiskIndex","v":115},115,115,115,115,115,115,115,115,115,115,115,115]
[null,null,null,"Moisture","Adequate",null,null,"Red Sorrel",{"$f":"WPRS_RiskIndex","v":90},90,90,90,90,90,90,90,90,90,90,90,90]
[null,null,null,"Temperature","Normal"]
[null,null,null,"Weed History",null,null,"Red Dots - Change practices to eliminate.\r\nYellow Dots - Consider adjusting practices to reduce risk.\r\nGreen Dots - Risk is acceptable for selected practices."]
[null,null,null,"Annual Bluegrass","Within last 2 years"]
[null,null,null,"Black Medic","Within last 2 years"]
[null,null,null,"Carolina Geranium","Within last 2 years"]
[null,null,null,"Chickweed","Within last 2 years"]
[null,null,null,"Clover","Within last 2 years"]
[null,null,null,"Common Lambsquarter","Within last 2 years"]
[null,null,null,"Crabgrass","Within last 2 years"]
[null,null,null,"Curly Dock","Within last 2 years"]
[null,null,null,"Cutleaf Evening Primrose","Within last 2 years"]
[null,null,null,"Dandelion","Within last 2 years"]
[null,null,null,"Goosegrass","Within last 2 years"]
[null,null,null,"Henbit","Within last 2 years"]
[null,null,null,"Nutsedges","Within last 2 years"]
[null,null,null,"Red Sorrel","Within last 2 years"]
[null,null,null,"Weed Management"]
[null,null,null,"Hand Weeding","No"]
[null,null,null,"Herbicide Applications","None"]

{"sheet":"Crop","index":1,"n_rows":15,"n_cols":5,"rows_kept":15,"cut":false,"hidden":true,"merged":[[12,1,12,4],[13,1,13,4],[14,1,14,4],[15,1,15,4],[6,1,6,4],[7,1,7,4],[8,1,8,4],[9,1,9,4],[10,1,10,4],[11,1,11,4]]}
["Crop","Strawberry"]
[]
["Planting Season","Date","Month","Day of Month","Day of Year"]
["Start","2021-05-15",{"$f":"MONTH(B4)","v":5},{"$f":"DAY(B4)","v":15},{"$f":"B4-DATE(YEAR(B4),1,1)+1","v":135}]
["End","2021-07-15",{"$f":"MONTH(B5)","v":7},{"$f":"DAY(B5)","v":15},{"$f":"B5-DATE(YEAR(B5),1,1)+1","v":196}]
[]
["Title","Strawberry Risk Tool - NC"]
["Subtitle"]
["Credit Lines","Kira Sims and Katie Jennings"]
[null,"Department of Horticultural Science"]
[]
[null,"David Jordan and Greg Buol"]
[null,"Department of Crop and Soil Sciences"]
[]
[null,"North Carolina State University, Raleigh NC"]

{"sheet":"Log_TPL","index":2,"n_rows":192,"n_cols":20,"rows_kept":192,"cut":false,"hidden":true,"merged":[[57,5,57,9],[24,5,24,14],[0,0,0,14],[53,5,53,9],[54,5,54,9],[55,5,55,9]]}
["Field and Production Information"]
[null,null,null,null,null,null,null,null,null,null,null,null,null,null,null,null,null,null,"Input Selection Lists"]
[null,null,null,"Crop",{"$f":"Crop","v":"Strawberry"},null,null,null,null,null,null,null,null,null,null,null,null,null,"Tillage_Pracs","Control_Rating"]
[null,null,null,"Variety"]
[null,null,null,null,null,null,null,null,null,null,null,null,null,null,null,null,null,null,"Bed","No Control (<5%)"]
[null,null,null,"Field Area (A)",null,null,null,null,null,null,null,null,null,null,null,null,null,null,"Chisel","Poor (5% to 20%)"]
[null,null,null,null,null,null,null,null,null,null,null,null,null,null,null,null,null,null,"Cultivate","Low (20% to 50%)"]
[null,null,null,"Soil ","Mapped Series","% of Field",null,null,null,null,null,null,null,null,null,null,null,null,"Disk","Moderate (50% to 80%)"]
[null,null,null,null,null,null,null,null,null,null,null,null,null,null,null,null,null,null,"Moldboard Plow","High (80% to 90%)"]
[null,null,null,null,null,null,null,null,null,null,null,null,null,null,null,null,null,null,"No Till","Excellent (90% to 100%)"]
[null,null,null,null,null,null,null,null,null,null,null,null,null,null,null,null,null,null,"Other"]
[null,null,null,null,null,null,null,null,null,null,null,null,null,null,null,null,null,null,"Rip"]
[null,null,null,null,null,null,null,null,null,null,null,null,null,null,null,null,null,null,"Rip and Bed"]
[null,null,null,null,null,null,null,null,null,null,null,null,null,null,null,null,null,null,"Strip Till"]
[null,null,null,"Tillage/Bedding Practice","Date","Equipment"]
[]
[]
[]
[]
[null,null,null,"Lime Applications","Date","Rate (lbs/A)"]
[null,null,null,"Current Year"]
[null,null,null,"Last Year"]
[]
[null,null,null,"Fertilizer","Date","N","P2O5","K2O","B","Cu","Fe","Mn","Mo","S","Zn"]
[null,null,null,null,null,"lbs/A"]
[]
[]
[]
[]
[]
[]
[null,null,null,"Weed Control","Date","Weeds","Weed Size","Trade Name","Rate","Trade Name","Rate","Trade Name","Rate","Trade Name","Rate","Evaluation Date","Control Rating"]
[null,null,null,"Burndown"]
[null,null,null,"Preplant"]
[null,null,null,"Cultivation"]
[]
[]
[null,null,null,"Postemergence"]
[]
[]
[null,null,null,"Hand Weeding"]
[]
[]
[null,null,null,"Pest Treaments","Date","Pest","Severity","Trade Name","Rate","Trade Name","Rate","Evaluation Date","Control Rating"]
[]
[]
[]
[]
[]
[]
[]
[]
[null,null,null,"Development Dates","Date","Crop Status"]
[null,null,null,"Planting"]
[null,null,null,"Visible Flower Buds"]
[null,null,null,"First Open Flowers"]
[null,null,null,"Petal Fall"]
[null,null,null,"First Fruit Harvest"]
[null,null,null,"Last Fruit Harvest"]
[]
[null,null,null,"Weeds at Harvest"]
[]
[]
[]
[]
[]
[]
[]
[]
[null,null,null,"Yield","Date","lb/ac","Price ($/lb)","Gross Profit ($/ac)"]
[null,null,null,"Harvest 1",null,null,null,{"$f":"F71*G71","v":0}]
[null,null,null,"Harvest 2",null,null,null,{"$f":"F72*G72","v":0}]
[null,null,null,"Harvest 3",null,null,null,0]
[null,null,null,"Harvest 4",null,null,null,0]
[null,null,null,"Harvest 5",null,null,null,0]
[null,null,null,"Harvest 6",null,null,null,0]
[null,null,null,"Harvest 7",null,null,null,0]
[null,null,null,"Harvest 8",null,null,null,0]
[null,null,null,"Harvest 9",null,null,null,0]
[null,null,null,"Harvest 10",null,null,null,0]
[null,null,null,"Harvest 11",null,null,null,0]
[null,null,null,"Harvest 12",null,null,null,0]
[null,null,null,"Harvest 13",null,null,null,0]
[null,null,null,"Harvest 14",null,null,null,0]
[null,null,null,"Harvest 15",null,null,null,0]
[null,null,null,"Harvest 16",null,null,null,0]
[null,null,null,"Harvest 17",null,null,null,0]
[null,null,null,"Harvest 18",null,null,null,0]
[null,null,null,"Harvest 19",null,null,null,0]
[null,null,null,"Harvest 20",null,null,null,0]
[]
[null,null,null,"Rainfall/Irrigation","Date","Amount (in)","Month",null,"Month","Amount (in)"]
[null,null,null,null,null,null,{"$f":"IF(ISBLANK(E93),\"\",TEXT(E93,\"mmm\"))","v":""},null,"Jan",{"$f":"SUMIF(G$93:G$192,\"=\" & I93,F$93:F$192)","v":0}]
[null,null,null,null,null,null,{"$f":"IF(ISBLANK(E94),\"\",TEXT(E94,\"mmm\"))","v":""},null,"Feb",{"$f":"SUMIF(G$93:G$192,\"=\" & I94,F$93:F$192)","v":0}]
[null,null,null,null,null,null,"",null,"Mar",0]
[null,null,null,null,null,null,"",null,"Apr",0]
[null,null,null,null,null,null,"",null,"May",0]
[null,null,null,null,null,null,"",null,"Jun",0]
[null,null,null,null,null,null,"",null,"Jul",0]
[null,null,null,null,null,null,"",null,"Aug",0]
[null,null,null,null,null,null,"",null,"Sep",0]
[null,null,null,null,null,null,"",null,"Oct",0]
[null,null,null,null,null,null,"",null,"Nov",0]
[null,null,null,null,null,null,"",null,"Dec",0]
[null,null,null,null,null,null,""]
[null,null,null,null,null,null,""]
[null,null,null,null,null,null,""]
[null,null,null,null,null,null,""]
[null,null,null,null,null,null,""]
[null,null,null,null,null,null,""]
[null,null,null,null,null,null,""]
[null,null,null,null,null,null,""]
[null,null,null,null,null,null,""]
[null,null,null,null,null,null,""]
[null,null,null,null,null,null,""]
[null,null,null,null,null,null,""]
[null,null,null,null,null,null,""]
[null,null,null,null,null,null,""]
[null,null,null,null,null,null,""]
[null,null,null,null,null,null,""]
[null,null,null,null,null,null,""]
[null,null,null,null,null,null,""]
[null,null,null,null,null,null,""]
[null,null,null,null,null,null,""]
[null,null,null,null,null,null,""]
[null,null,null,null,null,null,""]
[null,null,null,null,null,null,""]
[null,null,null,null,null,null,""]
[null,null,null,null,null,null,""]
[null,null,null,null,null,null,""]
[null,null,null,null,null,null,""]
[null,null,null,null,null,null,""]
[null,null,null,null,null,null,""]
[null,null,null,null,null,null,""]
[null,null,null,null,null,null,""]
[null,null,null,null,null,null,""]
[null,null,null,null,null,null,""]
[null,null,null,null,null,null,""]
[null,null,null,null,null,null,""]
[null,null,null,null,null,null,""]
[null,null,null,null,null,null,""]
[null,null,null,null,null,null,""]
[null,null,null,null,null,null,""]
[null,null,null,null,null,null,""]
[null,null,null,null,null,null,""]
[null,null,null,null,null,null,""]
[null,null,null,null,null,null,""]
[null,null,null,null,null,null,""]
[null,null,null,null,null,null,""]
[null,null,null,null,null,null,""]
[null,null,null,null,null,null,""]
[null,null,null,null,null,null,""]
[null,null,null,null,null,null,""]
[null,null,null,null,null,null,""]
[null,null,null,null,null,null,""]
[null,null,null,null,null,null,""]
[null,null,null,null,null,null,""]
[null,null,null,null,null,null,{"$f":"IF(ISBLANK(E158),\"\",TEXT(E158,\"mmm\"))","v":""}]
[null,null,null,null,null,null,""]
[null,null,null,null,null,null,""]
[null,null,null,null,null,null,""]
[null,null,null,null,null,null,""]
[null,null,null,null,null,null,""]
[null,null,null,null,null,null,""]
[null,null,null,null,null,null,""]
[null,null,null,null,null,null,""]
[null,null,null,null,null,null,""]
[null,null,null,null,null,null,""]
[null,null,null,null,null,null,""]
[null,null,null,null,null,null,""]
[null,null,null,null,null,null,""]
[null,null,null,null,null,null,""]
[null,null,null,null,null,null,""]
[null,null,null,null,null,null,""]
[null,null,null,null,null,null,""]
[null,null,null,null,null,null,""]
[null,null,null,null,null,null,""]
[null,null,null,null,null,null,""]
[null,null,null,null,null,null,""]
[null,null,null,null,null,null,""]
[null,null,null,null,null,null,""]
[null,null,null,null,null,null,""]
[null,null,null,null,null,null,""]
[null,null,null,null,null,null,""]
[null,null,null,null,null,null,""]
[null,null,null,null,null,null,""]
[null,null,null,null,null,null,""]
[null,null,null,null,null,null,""]
[null,null,null,null,null,null,""]
[null,null,null,null,null,null,""]
[null,null,null,null,null,null,""]
[null,null,null,null,null,null,""]

{"sheet":"Pests","index":3,"n_rows":22,"n_cols":3,"rows_kept":22,"cut":false,"hidden":true,"merged":[]}
["PestType","Pest","PestID"]
["Crown Rots","Anthracnose Crown Rot","CRA"]
["Crown Rots","Phytophthora Root Rot","CRPHY"]
["Fruit Rots","Anthracnose Fruit Rot","FRA"]
["Fruit Rots","Gray Mold (Botrytis)","FRB"]
["Insects","Spotted Wing Drosophila","ISWD"]
["Insects","Strawberry Weevil","ISW"]
["Insects","Two Spotted Spider Mite","ITSSM"]
["Weeds (Annual Broadleaves)","Black Medic","WABBM"]
["Weeds (Annual Broadleaves)","Carolina Geranium","WABCG"]
["Weeds (Annual Broadleaves)","Chickweed","WABCW"]
["Weeds (Annual Broadleaves)","Common Lambsquarters","WABCL"]
["Weeds (Annual Broadleaves)","Cutleaf Evening Primrose","WABCEP"]
["Weeds (Annual Broadleaves)","Henbit","WABHB"]
["Weeds (Annual Grasses)","Annual Bluegrass","WGRAB"]
["Weeds (Annual Grasses)","Crabgrass","WGRCG"]
["Weeds (Annual Grasses)","Goosegrass","WGRGG"]
["Weeds (Perennials)","Clover","WPC"]
["Weeds (Perennials)","Curly Dock","WPCD"]
["Weeds (Perennials)","Dandelion","WPD"]
["Weeds (Perennials)","Nutsedges","WPNS"]
["Weeds (Perennials)","Red Sorrel","WPRS"]

{"sheet":"Lists","index":4,"n_rows":38,"n_cols":44,"rows_kept":38,"cut":false,"hidden":true,"merged":[]}
["Category","Category_Pest","CategoryID","Category_List","Category_List_Type","Months","Land_Area_Units","Weed_Management\\Hand_Weeding","Weed_Management\\Herbicide_Applications","Crop_Practices\\Rotation_Period","Equipment\\Sanitation","Crop_Practices\\Transplants","Pest_Management\\Fungicides","Pest_Management\\Insecticides","Field_Practices\\Row_Middles","Weed_History\\Common_Lambsquarter","Weed_History\\Crabgrass","Weed_History\\Goosegrass","Weed_History\\Nutsedges","Pest_Management\\Fumigation","Field_Practices\\Bed_Mulch","Weed_History\\Annual_Bluegrass","Weed_History\\Black_Medic","Weed_History\\Carolina_Geranium","Weed_History\\Chickweed","Crop_Practices\\Cultivar","Weed_History\\Cutleaf_Evening_Primrose","Weed_History\\Henbit","Weed_History\\Clover","Weed_History\\Curly_Dock","Weed_History\\Dandelion","Weed_History\\Red_Sorrel","Field_Practices\\Bed_Management","Field_Practices\\Fertility_Program","Pest_History\\Anthracnose_Fruit_Rot","Pest_History\\Anthracnose_Crown_Rot","Pest_History\\Phytophthora_Root_Rot","Weather_Conditions\\Temperature","Weather_Conditions\\Moisture","Pest_History\\Gray_Mold_Fruit_Rot","Crop_Practices\\Production_Season","Field\\Prior_Land_Use","Field\\Soil_Drainage","Field\\Weed_Presence"]
["Crop_Practices\\Cultivar",null,"Crop_Practices\\Cultivar","Crop_Practices\\Cultivar","Single","(01) January","ac","01|No","01|None","01|Continuous","01|No","01|Not clean","01|None","01|None","01|Bare ground","01|Never","01|Never","01|Never","01|Never","01|No","01|Black Plastic","01|Never","01|Never","01|Never","01|Never","01|Sweet Charlie","01|Never","01|Never","01|Never","01|Never","01|Never","01|Never","01|None or minimal","01|Standard","01|Never","01|Never","01|Never","01|Cool","01|Dry","01|Never","01|Spring","01|Forest/fallow","01|Good to very good","01|Low"]
["Crop_Practices\\Production_Season",null,"Crop_Practices\\Production_Season","Crop_Practices\\Production_Season","Single","(02) February","ha","02|Yes","02|1 recommended","02|1 year","02|Yes","02|Clean","02|1 recommended","02|1 to 2 recommended","02|Cover crop (Thin stand)","02|Within last 2 years","02|Within last 2 years","02|Within last 2 years","02|Within last 2 years","02|Yes","02|Clear Plastic","02|Within last 2 years","02|Within last 2 years","02|Within last 2 years","02|Within last 2 years","02|Other","02|Within last 2 years","02|Within last 2 years","02|Within last 2 years","02|Within last 2 years","02|Within last 2 years","02|Within last 2 years","02|Weeds and dead leaves removed","02|High nitrogen","02|Within last 2 years","02|Within last 2 years","02|Within last 2 years","02|Normal","02|Adequate","02|Within last 2 years","02|Fall","02|Cultivated","02|Poor","02|Moderate"]
["Crop_Practices\\Rotation_Period",null,"Crop_Practices\\Rotation_Period","Crop_Practices\\Rotation_Period","Single","(03) March",null,null,"03|2 recommended","03|2 years",null,null,"03|2 to 3 recommended","03|3 to 4 recommended","03|Cover crop (Moderate stand)","03|Within last 2 to 5 years","03|Within 2 to 5 years","03|Within 2 to 5 years","03|Within 2 to 5 years",null,"03|Colored Plastic","03|Within 2 to 5 years","03|Within 2 to 5 years","03|Within 2 to 5 years","03|Within 2 to 5 years",null,"03|Within 2 to 5 years","03|Within 2 to 5 years","03|Within 2 to 5 years","03|Within 2 to 5 years","03|Within 2 to 5 years","03|Within 3 to 5 years",null,null,"03|Within 2 to 5 years","03|Within 2 to 5 years","03|Within 2 to 3 yeares","03|Warm/Hot","03|Wet/Humid","03|Within 2 to 5 years",null,"03|Turf",null,"03|High"]
["Crop_Practices\\Transplants",null,"Crop_Practices\\Transplants","Crop_Practices\\Transplants","Single","(04) April",null,null,"04|3 or more recommended","04|3 years",null,null,"04|4 to 5 recommended","04|5 or more recommended","04|Cover crop (Thick stand)","04|More than 5 years ago","04|More than 5 years ago","04|More than 5 years ago","04|More than 5 years ago",null,"04|Totally Impermeable Film (TIF)","04|More than 5 years ago","04|More than 5 years ago","04|More than 5 years ago","04|More than 5 years ago",null,"04|More than 5 years ago","04|More than 5 years ago","04|More than 5 years ago","04|More than 5 years ago","04|More than 5 years ago","04|More than 5 years ago",null,null,"04|More than 5 years","04|More than 5 years ago","04|More than 5 years ago",null,null,"04|More than 5 years"]
["Equipment\\Sanitation",null,"Equipment\\Sanitation","Equipment\\Sanitation","Single","(05) May",null,null,null,"05|4 or more years",null,null,"05|6 or more recommended",null,"05|Tilled"]
["Field\\Prior_Land_Use",null,"Field\\Prior_Land_Use","Field\\Prior_Land_Use","Single","(06) June"]
["Field\\Soil_Drainage",null,"Field\\Soil_Drainage","Field\\Soil_Drainage","Single","(07) July"]
["Field\\Weed_Presence",null,"Field\\Weed_Presence","Field\\Weed_Presence","Single","(08) August"]
["Field_Practices\\Bed_Management",null,"Field_Practices\\Bed_Management","Field_Practices\\Bed_Management","Single","(09) September"]
["Field_Practices\\Bed_Mulch",null,"Field_Practices\\Bed_Mulch","Field_Practices\\Bed_Mulch","Single","(10) October"]
["Field_Practices\\Fertility_Program",null,"Field_Practices\\Fertility_Program","Field_Practices\\Fertility_Program","Single","(11) November"]
["Field_Practices\\Row_Middles",null,"Field_Practices\\Row_Middles","Field_Practices\\Row_Middles","Single","(12) December"]
["Pest_History\\Anthracnose_Crown_Rot",null,"Pest_History\\Anthracnose_Crown_Rot","Pest_History\\Anthracnose_Crown_Rot","Single"]
["Pest_History\\Anthracnose_Fruit_Rot",null,"Pest_History\\Anthracnose_Fruit_Rot","Pest_History\\Anthracnose_Fruit_Rot","Single"]
["Pest_History\\Gray_Mold_Fruit_Rot",null,"Pest_History\\Gray_Mold_Fruit_Rot","Pest_History\\Gray_Mold_Fruit_Rot","Single"]
["Pest_History\\Phytophthora_Root_Rot",null,"Pest_History\\Phytophthora_Root_Rot","Pest_History\\Phytophthora_Root_Rot","Single"]
["Pest_Management\\Fumigation",null,"Pest_Management\\Fumigation","Pest_Management\\Fumigation","Single"]
["Pest_Management\\Fungicides",null,"Pest_Management\\Fungicides","Pest_Management\\Fungicides","Single"]
["Pest_Management\\Insecticides",null,"Pest_Management\\Insecticides","Pest_Management\\Insecticides","Single"]
["Weather_Conditions\\Moisture",null,"Weather_Conditions\\Moisture","Weather_Conditions\\Moisture","Single"]
["Weather_Conditions\\Temperature",null,"Weather_Conditions\\Temperature","Weather_Conditions\\Temperature","Single"]
["Weed_History\\Annual_Bluegrass",null,"Weed_History\\Annual_Bluegrass","Weed_History\\Annual_Bluegrass","Single"]
["Weed_History\\Black_Medic",null,"Weed_History\\Black_Medic","Weed_History\\Black_Medic","Single"]
["Weed_History\\Carolina_Geranium",null,"Weed_History\\Carolina_Geranium","Weed_History\\Carolina_Geranium","Single"]
["Weed_History\\Chickweed",null,"Weed_History\\Chickweed","Weed_History\\Chickweed","Single"]
["Weed_History\\Clover",null,"Weed_History\\Clover","Weed_History\\Clover","Single"]
["Weed_History\\Common_Lambsquarter",null,"Weed_History\\Common_Lambsquarter","Weed_History\\Common_Lambsquarter","Single"]
["Weed_History\\Crabgrass",null,"Weed_History\\Crabgrass","Weed_History\\Crabgrass","Single"]
["Weed_History\\Curly_Dock",null,"Weed_History\\Curly_Dock","Weed_History\\Curly_Dock","Single"]
["Weed_History\\Cutleaf_Evening_Primrose",null,"Weed_History\\Cutleaf_Evening_Primrose","Weed_History\\Cutleaf_Evening_Primrose","Single"]
["Weed_History\\Dandelion",null,"Weed_History\\Dandelion","Weed_History\\Dandelion","Single"]
["Weed_History\\Goosegrass",null,"Weed_History\\Goosegrass","Weed_History\\Goosegrass","Single"]
["Weed_History\\Henbit",null,"Weed_History\\Henbit","Weed_History\\Henbit","Single"]
["Weed_History\\Nutsedges",null,"Weed_History\\Nutsedges","Weed_History\\Nutsedges","Single"]
["Weed_History\\Red_Sorrel",null,"Weed_History\\Red_Sorrel","Weed_History\\Red_Sorrel","Single"]
["Weed_Management\\Hand_Weeding",null,"Weed_Management\\Hand_Weeding","Weed_Management\\Hand_Weeding","Single"]
["Weed_Management\\Herbicide_Applications",null,"Weed_Management\\Herbicide_Applications","Weed_Management\\Herbicide_Applications","Single"]

{"sheet":"Costs","index":5,"n_rows":24,"n_cols":14,"rows_kept":24,"cut":false,"hidden":true,"merged":[[0,7,0,9],[0,10,0,12],[6,7,6,9],[6,10,6,12],[10,7,10,9],[10,10,10,12]]}
["Land Area Units ","ac",null,null,null,null,null,{"$f":"Cost_Header","v":"Cost ($/ac)"},null,null,{"$f":"CONCATENATE(\"Person Hours (hrs/\",sel_Land_Area_Units,\")\")","v":"Person Hours (hrs/ac)"}]
["Category","Item",{"$f":"CONCATENATE(\"Cost ($/\",sel_Land_Area_Units,\")\")","v":"Cost ($/ac)"},"Multiplier",{"$f":"CONCATENATE(\"Person Hours (hrs/\",sel_Land_Area_Units,\")\")","v":"Person Hours (hrs/ac)"},null,"Category","Max","Min","Sel","Max","Min","Sel","Selection"]
["Base_Cost",null,210,null,null,null,"Base_Cost",{"$f":"Cost_Base","v":210},{"$f":"Cost_Base","v":210},{"$f":"Cost_Base","v":210},{"$f":"PersonHours_Base","v":0},{"$f":"PersonHours_Base","v":0},{"$f":"PersonHours_Base","v":0}]
[]
[null,null,null,null,null,null,"Total",{"$f":"SUM(H$3:H3)","v":210},{"$f":"SUM(I$3:I3)","v":210},{"$f":"IF(ISERROR(SUM(J$3:J3)),0,SUM(J$3:J3))","v":210},{"$f":"SUM(K$3:K3)","v":0},{"$f":"SUM(L$3:L3)","v":0},{"$f":"IF(ISERROR(SUM(M$3:M3)),0,SUM(M$3:M3))","v":0}]
[]
[null,null,null,null,null,null,null,{"$f":"CONCATENATE(\"Cost Thresholds ($/\",sel_Land_Area_Units,\")\")","v":"Cost Thresholds ($/ac)"},null,null,{"$f":"CONCATENATE(\"Person Hour Thresholds (hrs/\",sel_Land_Area_Units,\")\")","v":"Person Hour Thresholds (hrs/ac)"}]
[null,null,null,null,null,null,"High",{"$f":"Cost_Min + 0.66667*(Cost_Max-Cost_Min)","v":210},null,null,{"$f":"PersonHours_Min + 0.66667*(PersonHours_Max-PersonHours_Min)","v":0}]
[null,null,null,null,null,null,"Moderate",{"$f":"Cost_Min + 0.33333*(Cost_Max-Cost_Min)","v":210},null,null,{"$f":"PersonHours_Min + 0.33333*(PersonHours_Max-PersonHours_Min)","v":0}]
[]
[null,null,null,null,null,null,null,{"$f":"CONCATENATE(\"Cost Ranges ($/\",sel_Land_Area_Units,\")\")","v":"Cost Ranges ($/ac)"},null,null,{"$f":"CONCATENATE(\"Person Hour Ranges (hrs/\",sel_Land_Area_Units,\")\")","v":"Person Hour Ranges (hrs/ac)"}]
[null,null,null,null,null,null,"Base",{"$f":"Cost_Base","v":210},null,null,{"$f":"PersonHours_Base","v":0}]
[null,null,null,null,null,null,"Low",{"$f":"Cost_Moderate-Cost_Base","v":0},null,null,{"$f":"PersonHours_Moderate-PersonHours_Base","v":0}]
[null,null,null,null,null,null,"Moderate",{"$f":"Cost_High-Cost_Moderate","v":0},null,null,{"$f":"PersonHours_High-PersonHours_Moderate","v":0}]
[null,null,null,null,null,null,"High",{"$f":"Cost_Max-Cost_High","v":0},null,null,{"$f":"PersonHours_Max-PersonHours_High","v":0}]
[]
[null,null,null,null,null,null,{"$f":"CONCATENATE(\"Estimated Cost: $\",ROUNDUP(TRUNC(Cost,2),0),\"/\",sel_Land_Area_Units)","v":"Estimated Cost: $210/ac"}]
[]
[]
[]
[]
[]
[]
[null,null,null,null,null,null,{"$f":"CONCATENATE(\"Estimated Person Hours: \",ROUNDUP(TRUNC(PersonHours,2),0),\" hrs/\",sel_Land_Area_Units)","v":"Estimated Person Hours: 0 hrs/ac"}]

{"sheet":"Logos","index":6,"n_rows":0,"n_cols":0,"rows_kept":0,"cut":false,"hidden":true,"merged":[]}

{"sheet":"Pest_Report","index":7,"n_rows":29,"n_cols":4,"rows_kept":29,"cut":false,"hidden":true,"merged":[[0,0,0,3],[5,0,5,1],[5,2,5,3],[6,3,9,3],[10,0,10,1],[10,2,10,3],[24,3,26,3],[28,0,28,3],[11,3,13,3],[14,0,14,1],[14,2,14,3],[15,3,18,3],[19,0,19,1],[19,2,19,3],[20,3,22,3],[23,0,23,1],[23,2,23,3]]}
["Strawberry - Two Spotted Spider Mite Risk Summary"]
[]
[]
[]
[]
["Crop Practices\\Rotation Period",null,"Risk Points"]
[null,"Continuous*",15,15]
[null,"1 year",10]
[null,"2 years, 3 years",5]
[null,"4 or more years",0]
["Field\\Weed Presence",null,"Risk Points"]
[null,"High*",10,10]
[null,"Moderate",5]
[null,"Low",0]
["Pest Management\\Insecticides",null,"Risk Points"]
[null,"None*",10,10]
[null,"1 to 2 recommended",5]
[null,"3 to 4 recommended",-5]
[null,"5 or more recommended",-10]
["Weather Conditions\\Moisture",null,"Risk Points"]
[null,"Dry",20,10]
[null,"Adequate*",10]
[null,"Wet/Humid",0]
["Weather Conditions\\Temperature",null,"Risk Points"]
[null,"Warm/Hot",12,8]
[null,"Normal*",8]
[null,"Cool",4]
[]
["* Selected options used in calculating pest risk.\r\nNote: Reduction in pest risk value by a control practice will be less under low risk conditions."]

{"sheet":"WGRCG","index":8,"n_rows":31,"n_cols":12,"rows_kept":31,"cut":false,"hidden":true,"merged":[[0,0,0,3]]}
["Crabgrass"]
["Category","Risk Level","Risk Level Description","Points",null,null,null,"Category","Max","Min","Risk","Selection"]
["Crop_Practices\\Rotation_Period",1,"Continuous",15,null,null,null,"Crop_Practices\\Rotation_Period",15,-10,{"$f":"getRiskValue(\"A:A\",H3,J3,L3,\"Single\")","v":15},{"$f":"IF(ISBLANK(sel_Crop_Practices\\Rotation_Period),\"\",sel_Crop_Practices\\Rotation_Period)","v":"Continuous"}]
["Crop_Practices\\Rotation_Period",2,"1 year",10,null,null,null,"Field\\Prior_Land_Use",15,0,15,{"$f":"IF(ISBLANK(sel_Field\\Prior_Land_Use),\"\",sel_Field\\Prior_Land_Use)","v":"Turf"}]
["Crop_Practices\\Rotation_Period",3,"2 years|3 years",-5,null,null,null,"Weed_History\\Crabgrass",15,0,15,{"$f":"IF(ISBLANK(sel_Weed_History\\Crabgrass),\"\",sel_Weed_History\\Crabgrass)","v":"Within last 2 years"}]
["Crop_Practices\\Rotation_Period",4,"4 or more years",-10,null,null,null,"Equipment\\Sanitation",10,-10,10,{"$f":"IF(ISBLANK(sel_Equipment\\Sanitation),\"\",sel_Equipment\\Sanitation)","v":"No"}]
["Equipment\\Sanitation",1,"No",10,null,null,null,"Field_Practices\\Bed_Mulch",10,-5,10,{"$f":"IF(ISBLANK(sel_Field_Practices\\Bed_Mulch),\"\",sel_Field_Practices\\Bed_Mulch)","v":"Clear Plastic"}]
["Equipment\\Sanitation",2,"Yes",-10,null,null,null,"Field_Practices\\Row_Middles",10,-10,10,{"$f":"IF(ISBLANK(sel_Field_Practices\\Row_Middles),\"\",sel_Field_Practices\\Row_Middles)","v":"Bare ground"}]
["Field\\Prior_Land_Use",1,"Turf",15,null,null,null,"Pest_Management\\Fumigation",10,-10,10,{"$f":"IF(ISBLANK(sel_Pest_Management\\Fumigation),\"\",sel_Pest_Management\\Fumigation)","v":"No"}]
["Field\\Prior_Land_Use",2,"Cultivated",10,null,null,null,"Weed_Management\\Herbicide_Applications",10,-5,10,{"$f":"IF(ISBLANK(sel_Weed_Management\\Herbicide_Applications),\"\",sel_Weed_Management\\Herbicide_Applications)","v":"None"}]
["Field\\Prior_Land_Use",3,"Forest/fallow",0,null,null,null,"Weed_Management\\Hand_Weeding",5,-5,5,{"$f":"IF(ISBLANK(sel_Weed_Management\\Hand_Weeding),\"\",sel_Weed_Management\\Hand_Weeding)","v":"No"}]
["Field_Practices\\Bed_Mulch",1,"Clear Plastic",10]
["Field_Practices\\Bed_Mulch",2,"Colored Plastic",5,null,null,null,"Total",{"$f":"SUMIF(I3:I11,\">0\")","v":100},{"$f":"SUMIF(J3:J11,\">0\")","v":0},{"$f":"MAX(WGRCG_MinRiskIndex,SUM(K3:K11))","v":100}]
["Field_Practices\\Bed_Mulch",3,"Black Plastic",0]
["Field_Practices\\Bed_Mulch",4,"Totally Impermeable Film (TIF)",-5,null,null,null,"High Risk Index",55]
["Field_Practices\\Row_Middles",1,"Bare ground",10,null,null,null,"Moderate Risk Index",20]
["Field_Practices\\Row_Middles",2,"Cover crop (Thin stand)",5]
["Field_Practices\\Row_Middles",3,"Cover crop (Moderate stand)",-5]
["Field_Practices\\Row_Middles",4,"Cover crop (Thick stand)|Tilled",-10]
["Pest_Management\\Fumigation",1,"No",10]
["Pest_Management\\Fumigation",2,"Yes",-10]
["Weed_History\\Crabgrass",1,"Within last 2 years",15]
["Weed_History\\Crabgrass",2,"Within 2 to 5 years",10]
["Weed_History\\Crabgrass",3,"More than 5 years ago",5]
["Weed_History\\Crabgrass",4,"Never",0]
["Weed_Management\\Hand_Weeding",1,"No",5]
["Weed_Management\\Hand_Weeding",2,"Yes",-5]
["Weed_Management\\Herbicide_Applications",1,"None",10]
["Weed_Management\\Herbicide_Applications",2,"1 recommended",5]
["Weed_Management\\Herbicide_Applications",3,"2 recommended",0]
["Weed_Management\\Herbicide_Applications",4,"3 or more recommended",-5]

{"sheet":"WGRGG","index":9,"n_rows":31,"n_cols":12,"rows_kept":31,"cut":false,"hidden":true,"merged":[[0,0,0,3]]}
["Goosegrass"]
["Category","Risk Level","Risk Level Description","Points",null,null,null,"Category","Max","Min","Risk","Selection"]
["Crop_Practices\\Rotation_Period",1,"Continuous",15,null,null,null,"Crop_Practices\\Rotation_Period",15,-10,{"$f":"getRiskValue(\"A:A\",H3,J3,L3,\"Single\")","v":15},{"$f":"IF(ISBLANK(sel_Crop_Practices\\Rotation_Period),\"\",sel_Crop_Practices\\Rotation_Period)","v":"Continuous"}]
["Crop_Practices\\Rotation_Period",2,"1 year",10,null,null,null,"Field\\Prior_Land_Use",15,0,15,{"$f":"IF(ISBLANK(sel_Field\\Prior_Land_Use),\"\",sel_Field\\Prior_Land_Use)","v":"Turf"}]
["Crop_Practices\\Rotation_Period",3,"2 years|3 years",-5,null,null,null,"Weed_History\\Goosegrass",15,0,15,{"$f":"IF(ISBLANK(sel_Weed_History\\Goosegrass),\"\",sel_Weed_History\\Goosegrass)","v":"Within last 2 years"}]
["Crop_Practices\\Rotation_Period",4,"4 or more years",-10,null,null,null,"Equipment\\Sanitation",10,-10,10,{"$f":"IF(ISBLANK(sel_Equipment\\Sanitation),\"\",sel_Equipment\\Sanitation)","v":"No"}]
["Equipment\\Sanitation",1,"No",10,null,null,null,"Field_Practices\\Bed_Mulch",10,-5,10,{"$f":"IF(ISBLANK(sel_Field_Practices\\Bed_Mulch),\"\",sel_Field_Practices\\Bed_Mulch)","v":"Clear Plastic"}]
["Equipment\\Sanitation",2,"Yes",-10,null,null,null,"Field_Practices\\Row_Middles",10,-10,10,{"$f":"IF(ISBLANK(sel_Field_Practices\\Row_Middles),\"\",sel_Field_Practices\\Row_Middles)","v":"Bare ground"}]
["Field\\Prior_Land_Use",1,"Turf",15,null,null,null,"Pest_Management\\Fumigation",10,-10,10,{"$f":"IF(ISBLANK(sel_Pest_Management\\Fumigation),\"\",sel_Pest_Management\\Fumigation)","v":"No"}]
["Field\\Prior_Land_Use",2,"Cultivated",10,null,null,null,"Weed_Management\\Herbicide_Applications",10,-5,10,{"$f":"IF(ISBLANK(sel_Weed_Management\\Herbicide_Applications),\"\",sel_Weed_Management\\Herbicide_Applications)","v":"None"}]
["Field\\Prior_Land_Use",3,"Forest/fallow",0,null,null,null,"Weed_Management\\Hand_Weeding",5,-5,5,{"$f":"IF(ISBLANK(sel_Weed_Management\\Hand_Weeding),\"\",sel_Weed_Management\\Hand_Weeding)","v":"No"}]
["Field_Practices\\Bed_Mulch",1,"Clear Plastic",10]
["Field_Practices\\Bed_Mulch",2,"Colored Plastic",5,null,null,null,"Total",{"$f":"SUMIF(I3:I11,\">0\")","v":100},{"$f":"SUMIF(J3:J11,\">0\")","v":0},{"$f":"MAX(WGRGG_MinRiskIndex,SUM(K3:K11))","v":100}]
["Field_Practices\\Bed_Mulch",3,"Black Plastic",0]
["Field_Practices\\Bed_Mulch",4,"Totally Impermeable Film (TIF)",-5,null,null,null,"High Risk Index",55]
["Field_Practices\\Row_Middles",1,"Bare ground",10,null,null,null,"Moderate Risk Index",20]
["Field_Practices\\Row_Middles",2,"Cover crop (Thin stand)",5]
["Field_Practices\\Row_Middles",3,"Cover crop (Moderate stand)",-5]
["Field_Practices\\Row_Middles",4,"Cover crop (Thick stand)|Tilled",-10]
["Pest_Management\\Fumigation",1,"No",10]
["Pest_Management\\Fumigation",2,"Yes",-10]
["Weed_History\\Goosegrass",1,"Within last 2 years",15]
["Weed_History\\Goosegrass",2,"Within 2 to 5 years",10]
["Weed_History\\Goosegrass",3,"More than 5 years ago",5]
["Weed_History\\Goosegrass",4,"Never",0]
["Weed_Management\\Hand_Weeding",1,"No",5]
["Weed_Management\\Hand_Weeding",2,"Yes",-5]
["Weed_Management\\Herbicide_Applications",1,"None",10]
["Weed_Management\\Herbicide_Applications",2,"1 recommended",5]
["Weed_Management\\Herbicide_Applications",3,"2 recommended",0]
["Weed_Management\\Herbicide_Applications",4,"3 or more recommended",-5]

{"sheet":"WABCL","index":10,"n_rows":32,"n_cols":12,"rows_kept":32,"cut":false,"hidden":true,"merged":[[0,0,0,3]]}
["Common Lambsquarters"]
["Category","Risk Level","Risk Level Description","Points",null,null,null,"Category","Max","Min","Risk","Selection"]
["Crop_Practices\\Rotation_Period",1,"Continuous",15,null,null,null,"Crop_Practices\\Rotation_Period",15,-10,{"$f":"getRiskValue(\"A:A\",H3,J3,L3,\"Single\")","v":15},{"$f":"IF(ISBLANK(sel_Crop_Practices\\Rotation_Period),\"\",sel_Crop_Practices\\Rotation_Period)","v":"Continuous"}]
["Crop_Practices\\Rotation_Period",2,"1 year",10,null,null,null,"Field_Practices\\Row_Middles",15,-10,15,{"$f":"IF(ISBLANK(sel_Field_Practices\\Row_Middles),\"\",sel_Field_Practices\\Row_Middles)","v":"Bare ground"}]
["Crop_Practices\\Rotation_Period",3,"2 years|3 years",-5,null,null,null,"Weed_History\\Common_Lambsquarter",15,0,15,{"$f":"IF(ISBLANK(sel_Weed_History\\Common_Lambsquarter),\"\",sel_Weed_History\\Common_Lambsquarter)","v":"Within last 2 years"}]
["Crop_Practices\\Rotation_Period",4,"4 or more years",-10,null,null,null,"Equipment\\Sanitation",10,-10,10,{"$f":"IF(ISBLANK(sel_Equipment\\Sanitation),\"\",sel_Equipment\\Sanitation)","v":"No"}]
["Equipment\\Sanitation",1,"No",10,null,null,null,"Field\\Prior_Land_Use",10,0,0,{"$f":"IF(ISBLANK(sel_Field\\Prior_Land_Use),\"\",sel_Field\\Prior_Land_Use)","v":"Turf"}]
["Equipment\\Sanitation",2,"Yes",-10,null,null,null,"Field_Practices\\Bed_Mulch",10,-5,10,{"$f":"IF(ISBLANK(sel_Field_Practices\\Bed_Mulch),\"\",sel_Field_Practices\\Bed_Mulch)","v":"Clear Plastic"}]
["Field\\Prior_Land_Use",1,"Cultivated",10,null,null,null,"Pest_Management\\Fumigation",10,-10,10,{"$f":"IF(ISBLANK(sel_Pest_Management\\Fumigation),\"\",sel_Pest_Management\\Fumigation)","v":"No"}]
["Field\\Prior_Land_Use",2,"Forest/fallow",5,null,null,null,"Weed_Management\\Herbicide_Applications",10,-5,10,{"$f":"IF(ISBLANK(sel_Weed_Management\\Herbicide_Applications),\"\",sel_Weed_Management\\Herbicide_Applications)","v":"None"}]
["Field\\Prior_Land_Use",3,"Turf",0,null,null,null,"Weed_Management\\Hand_Weeding",5,-5,5,{"$f":"IF(ISBLANK(sel_Weed_Management\\Hand_Weeding),\"\",sel_Weed_Management\\Hand_Weeding)","v":"No"}]
["Field_Practices\\Bed_Mulch",1,"Clear Plastic",10]
["Field_Practices\\Bed_Mulch",2,"Colored Plastic",5,null,null,null,"Total",{"$f":"SUMIF(I3:I11,\">0\")","v":100},{"$f":"SUMIF(J3:J11,\">0\")","v":0},{"$f":"MAX(WABCL_MinRiskIndex,SUM(K3:K11))","v":90}]
["Field_Practices\\Bed_Mulch",3,"Black Plastic",0]
["Field_Practices\\Bed_Mulch",4,"Totally Impermeable Film (TIF)",-5,null,null,null,"High Risk Index",90]
["Field_Practices\\Row_Middles",1,"Bare ground",15,null,null,null,"Moderate Risk Index",25]
["Field_Practices\\Row_Middles",2,"Cover crop (Thin stand)",10]
["Field_Practices\\Row_Middles",3,"Cover crop (Moderate stand)",0]
["Field_Practices\\Row_Middles",4,"Cover crop (Thick stand)",-5]
["Field_Practices\\Row_Middles",5,"Tilled",-10]
["Pest_Management\\Fumigation",1,"No",10]
["Pest_Management\\Fumigation",2,"Yes",-10]
["Weed_History\\Common_Lambsquarter",1,"Within last 2 years",15]
["Weed_History\\Common_Lambsquarter",2,"Within last 2 to 5 years",10]
["Weed_History\\Common_Lambsquarter",3,"More than 5 years ago",5]
["Weed_History\\Common_Lambsquarter",4,"Never",0]
["Weed_Management\\Hand_Weeding",1,"No",5]
["Weed_Management\\Hand_Weeding",2,"Yes",-5]
["Weed_Management\\Herbicide_Applications",1,"None",10]
["Weed_Management\\Herbicide_Applications",2,"1 recommended",5]
["Weed_Management\\Herbicide_Applications",3,"2 recommended",0]
["Weed_Management\\Herbicide_Applications",4,"3 or more recommended",-5]

{"sheet":"WPNS","index":11,"n_rows":30,"n_cols":12,"rows_kept":30,"cut":false,"hidden":true,"merged":[[0,0,0,3]]}
["Nutsedges"]
["Category","Risk Level","Risk Level Description","Points",null,null,null,"Category","Max","Min","Risk","Selection"]
["Crop_Practices\\Rotation_Period",1,"Continuous",20,null,null,null,"Crop_Practices\\Rotation_Period",20,0,{"$f":"getRiskValue(\"A:A\",H3,J3,L3,\"Single\")","v":20},{"$f":"IF(ISBLANK(sel_Crop_Practices\\Rotation_Period),\"\",sel_Crop_Practices\\Rotation_Period)","v":"Continuous"}]
["Crop_Practices\\Rotation_Period",2,"1 year",15,null,null,null,"Field_Practices\\Bed_Mulch",20,-5,20,{"$f":"IF(ISBLANK(sel_Field_Practices\\Bed_Mulch),\"\",sel_Field_Practices\\Bed_Mulch)","v":"Clear Plastic"}]
["Crop_Practices\\Rotation_Period",3,"2 years|3 years",5,null,null,null,"Weed_History\\Nutsedges",20,0,20,{"$f":"IF(ISBLANK(sel_Weed_History\\Nutsedges),\"\",sel_Weed_History\\Nutsedges)","v":"Within last 2 years"}]
["Crop_Practices\\Rotation_Period",4,"4 or more years",0,null,null,null,"Equipment\\Sanitation",15,-10,15,{"$f":"IF(ISBLANK(sel_Equipment\\Sanitation),\"\",sel_Equipment\\Sanitation)","v":"No"}]
["Equipment\\Sanitation",1,"No",15,null,null,null,"Field\\Prior_Land_Use",15,5,5,{"$f":"IF(ISBLANK(sel_Field\\Prior_Land_Use),\"\",sel_Field\\Prior_Land_Use)","v":"Turf"}]
["Equipment\\Sanitation",2,"Yes",-10,null,null,null,"Weed_Management\\Herbicide_Applications",15,5,15,{"$f":"IF(ISBLANK(sel_Weed_Management\\Herbicide_Applications),\"\",sel_Weed_Management\\Herbicide_Applications)","v":"None"}]
["Field\\Prior_Land_Use",1,"Cultivated",15,null,null,null,"Field_Practices\\Row_Middles",10,-5,5,{"$f":"IF(ISBLANK(sel_Field_Practices\\Row_Middles),\"\",sel_Field_Practices\\Row_Middles)","v":"Bare ground"}]
["Field\\Prior_Land_Use",2,"Forest/fallow",10,null,null,null,"Pest_Management\\Fumigation",10,0,10,{"$f":"IF(ISBLANK(sel_Pest_Management\\Fumigation),\"\",sel_Pest_Management\\Fumigation)","v":"No"}]
["Field\\Prior_Land_Use",3,"Turf",5,null,null,null,"Weed_Management\\Hand_Weeding",5,-5,5,{"$f":"IF(ISBLANK(sel_Weed_Management\\Hand_Weeding),\"\",sel_Weed_Management\\Hand_Weeding)","v":"No"}]
["Field_Practices\\Bed_Mulch",1,"Clear Plastic",20]
["Field_Practices\\Bed_Mulch",2,"Colored Plastic",10,null,null,null,"Total",{"$f":"SUMIF(I3:I11,\">0\")","v":130},{"$f":"SUMIF(J3:J11,\">0\")","v":10},{"$f":"MAX(WPNS_MinRiskIndex,SUM(K3:K11))","v":115}]
["Field_Practices\\Bed_Mulch",3,"Black Plastic",5]
["Field_Practices\\Bed_Mulch",4,"Totally Impermeable Film (TIF)",-5,null,null,null,"High Risk Index",90]
["Field_Practices\\Row_Middles",1,"Tilled",10,null,null,null,"Moderate Risk Index",40]
["Field_Practices\\Row_Middles",2,"Bare ground|Cover crop (Thin stand)",5]
["Field_Practices\\Row_Middles",3,"Cover crop (Moderate stand)",0]
["Field_Practices\\Row_Middles",4,"Cover crop (Thick stand)",-5]
["Pest_Management\\Fumigation",1,"No",10]
["Pest_Management\\Fumigation",2,"Yes",0]
["Weed_History\\Nutsedges",1,"Within last 2 years",20]
["Weed_History\\Nutsedges",2,"Within 2 to 5 years",15]
["Weed_History\\Nutsedges",3,"More than 5 years ago",10]
["Weed_History\\Nutsedges",4,"Never",0]
["Weed_Management\\Hand_Weeding",1,"No",5]
["Weed_Management\\Hand_Weeding",2,"Yes",-5]
["Weed_Management\\Herbicide_Applications",1,"None",15]
["Weed_Management\\Herbicide_Applications",2,"1 recommended",10]
["Weed_Management\\Herbicide_Applications",3,"2 recommended|3 or more recommended",5]

{"sheet":"ISWD","index":12,"n_rows":12,"n_cols":12,"rows_kept":12,"cut":false,"hidden":true,"merged":[[0,0,0,3]]}
["Spotted Wing Drosophila"]
["Category","Risk Level","Risk Level Description","Points",null,null,null,"Category","Max","Min","Risk","Selection"]
["Crop_Practices\\Production_Season",1,"Fall",15,null,null,null,"Crop_Practices\\Production_Season",15,5,{"$f":"getRiskValue(\"A:A\",H3,J3,L3,\"Single\")","v":5},{"$f":"IF(ISBLANK(sel_Crop_Practices\\Production_Season),\"\",sel_Crop_Practices\\Production_Season)","v":"Spring"}]
["Crop_Practices\\Production_Season",2,"Spring",5,null,null,null,"Crop_Practices\\Rotation_Period",15,0,{"$f":"getRiskValue(\"A:A\",H4,J4,L4,\"Single\")","v":15},{"$f":"IF(ISBLANK(sel_Crop_Practices\\Rotation_Period),\"\",sel_Crop_Practices\\Rotation_Period)","v":"Continuous"}]
["Crop_Practices\\Rotation_Period",1,"Continuous",15,null,null,null,"Pest_Management\\Insecticides",10,-10,{"$f":"getRiskValue(\"A:A\",H5,J5,L5,\"Single\")","v":10},{"$f":"IF(ISBLANK(sel_Pest_Management\\Insecticides),\"\",sel_Pest_Management\\Insecticides)","v":"None"}]
["Crop_Practices\\Rotation_Period",2,"1 year",10]
["Crop_Practices\\Rotation_Period",3,"2 years|3 years",5,null,null,null,"Total",{"$f":"SUMIF(I3:I5,\">0\")","v":40},{"$f":"SUMIF(J3:J5,\">0\")","v":5},{"$f":"MAX(ISWD_MinRiskIndex,SUM(K3:K5))","v":30}]
["Crop_Practices\\Rotation_Period",4,"4 or more years",0]
["Pest_Management\\Insecticides",1,"None",10,null,null,null,"High Risk Index",30]
["Pest_Management\\Insecticides",2,"1 to 2 recommended",5,null,null,null,"Moderate Risk Index",10]
["Pest_Management\\Insecticides",3,"3 to 4 recommended",-5]
["Pest_Management\\Insecticides",4,"5 or more recommended",-10]

{"sheet":"ISW","index":13,"n_rows":15,"n_cols":12,"rows_kept":15,"cut":false,"hidden":true,"merged":[[0,0,0,3]]}
["Strawberry Weevil"]
["Category","Risk Level","Risk Level Description","Points",null,null,null,"Category","Max","Min","Risk","Selection"]
["Crop_Practices\\Rotation_Period",1,"Continuous",15,null,null,null,"Crop_Practices\\Rotation_Period",15,0,{"$f":"getRiskValue(\"A:A\",H3,J3,L3,\"Single\")","v":15},{"$f":"IF(ISBLANK(sel_Crop_Practices\\Rotation_Period),\"\",sel_Crop_Practices\\Rotation_Period)","v":"Continuous"}]
["Crop_Practices\\Rotation_Period",2,"1 year",10,null,null,null,"Field\\Weed_Presence",10,-5,{"$f":"getRiskValue(\"A:A\",H4,J4,L4,\"Single\")","v":10},{"$f":"IF(ISBLANK(sel_Field\\Weed_Presence),\"\",sel_Field\\Weed_Presence)","v":"High"}]
["Crop_Practices\\Rotation_Period",3,"2 years|3 years",5,null,null,null,"Pest_Management\\Fumigation",10,-5,{"$f":"getRiskValue(\"A:A\",H5,J5,L5,\"Single\")","v":10},{"$f":"IF(ISBLANK(sel_Pest_Management\\Fumigation),\"\",sel_Pest_Management\\Fumigation)","v":"No"}]
["Crop_Practices\\Rotation_Period",4,"4 or more years",0,null,null,null,"Pest_Management\\Insecticides",10,-10,{"$f":"getRiskValue(\"A:A\",H6,J6,L6,\"Single\")","v":10},{"$f":"IF(ISBLANK(sel_Pest_Management\\Insecticides),\"\",sel_Pest_Management\\Insecticides)","v":"None"}]
["Field\\Weed_Presence",1,"High",10]
["Field\\Weed_Presence",2,"Moderate",5,null,null,null,"Total",{"$f":"SUMIF(I3:I6,\">0\")","v":45},{"$f":"SUMIF(J3:J6,\">0\")","v":0},{"$f":"MAX(ISW_MinRiskIndex,SUM(K3:K6))","v":45}]
["Field\\Weed_Presence",3,"Low",-5]
["Pest_Management\\Fumigation",1,"No",10,null,null,null,"High Risk Index",20]
["Pest_Management\\Fumigation",2,"Yes",-5,null,null,null,"Moderate Risk Index",10]
["Pest_Management\\Insecticides",1,"None",10]
["Pest_Management\\Insecticides",2,"1 to 2 recommended",5]
["Pest_Management\\Insecticides",3,"3 to 4 recommended",-5]
["Pest_Management\\Insecticides",4,"5 or more recommended",-10]

{"sheet":"WGRAB","index":14,"n_rows":31,"n_cols":12,"rows_kept":31,"cut":false,"hidden":true,"merged":[[0,0,0,3]]}
["Annual Bluegrass"]
["Category","Risk Level","Risk Level Description","Points",null,null,null,"Category","Max","Min","Risk","Selection"]
["Crop_Practices\\Rotation_Period",1,"Continuous",15,null,null,null,"Crop_Practices\\Rotation_Period",15,-10,{"$f":"getRiskValue(\"A:A\",H3,J3,L3,\"Single\")","v":15},{"$f":"IF(ISBLANK(sel_Crop_Practices\\Rotation_Period),\"\",sel_Crop_Practices\\Rotation_Period)","v":"Continuous"}]
["Crop_Practices\\Rotation_Period",2,"1 year",10,null,null,null,"Field\\Prior_Land_Use",15,0,15,{"$f":"IF(ISBLANK(sel_Field\\Prior_Land_Use),\"\",sel_Field\\Prior_Land_Use)","v":"Turf"}]
["Crop_Practices\\Rotation_Period",3,"2 years|3 years",-5,null,null,null,"Weed_History\\Annual_Bluegrass",15,0,15,{"$f":"IF(ISBLANK(sel_Weed_History\\Annual_Bluegrass),\"\",sel_Weed_History\\Annual_Bluegrass)","v":"Within last 2 years"}]
["Crop_Practices\\Rotation_Period",4,"4 or more years",-10,null,null,null,"Equipment\\Sanitation",10,-10,10,{"$f":"IF(ISBLANK(sel_Equipment\\Sanitation),\"\",sel_Equipment\\Sanitation)","v":"No"}]
["Equipment\\Sanitation",1,"No",10,null,null,null,"Field_Practices\\Bed_Mulch",10,-5,10,{"$f":"IF(ISBLANK(sel_Field_Practices\\Bed_Mulch),\"\",sel_Field_Practices\\Bed_Mulch)","v":"Clear Plastic"}]
["Equipment\\Sanitation",2,"Yes",-10,null,null,null,"Field_Practices\\Row_Middles",10,-10,10,{"$f":"IF(ISBLANK(sel_Field_Practices\\Row_Middles),\"\",sel_Field_Practices\\Row_Middles)","v":"Bare ground"}]
["Field\\Prior_Land_Use",1,"Turf",15,null,null,null,"Pest_Management\\Fumigation",10,-10,10,{"$f":"IF(ISBLANK(sel_Pest_Management\\Fumigation),\"\",sel_Pest_Management\\Fumigation)","v":"No"}]
["Field\\Prior_Land_Use",2,"Cultivated",10,null,null,null,"Weed_Management\\Herbicide_Applications",10,-5,10,{"$f":"IF(ISBLANK(sel_Weed_Management\\Herbicide_Applications),\"\",sel_Weed_Management\\Herbicide_Applications)","v":"None"}]
["Field\\Prior_Land_Use",3,"Forest/fallow",0,null,null,null,"Weed_Management\\Hand_Weeding",5,-5,5,{"$f":"IF(ISBLANK(sel_Weed_Management\\Hand_Weeding),\"\",sel_Weed_Management\\Hand_Weeding)","v":"No"}]
["Field_Practices\\Bed_Mulch",1,"Clear Plastic",10]
["Field_Practices\\Bed_Mulch",2,"Colored Plastic",5,null,null,null,"Total",{"$f":"SUMIF(I3:I11,\">0\")","v":100},{"$f":"SUMIF(J3:J11,\">0\")","v":0},{"$f":"MAX(WGRAB_MinRiskIndex,SUM(K3:K11))","v":100}]
["Field_Practices\\Bed_Mulch",3,"Black Plastic",0]
["Field_Practices\\Bed_Mulch",4,"Totally Impermeable Film (TIF)",-5,null,null,null,"High Risk Index",55]
["Field_Practices\\Row_Middles",1,"Bare ground",10,null,null,null,"Moderate Risk Index",20]
["Field_Practices\\Row_Middles",2,"Cover crop (Thin stand)",5]
["Field_Practices\\Row_Middles",3,"Cover crop (Moderate stand)",-5]
["Field_Practices\\Row_Middles",4,"Cover crop (Thick stand)|Tilled",-10]
["Pest_Management\\Fumigation",1,"No",10]
["Pest_Management\\Fumigation",2,"Yes",-10]
["Weed_History\\Annual_Bluegrass",1,"Within last 2 years",15]
["Weed_History\\Annual_Bluegrass",2,"Within 2 to 5 years",10]
["Weed_History\\Annual_Bluegrass",3,"More than 5 years ago",5]
["Weed_History\\Annual_Bluegrass",4,"Never",0]
["Weed_Management\\Hand_Weeding",1,"No",5]
["Weed_Management\\Hand_Weeding",2,"Yes",-5]
["Weed_Management\\Herbicide_Applications",1,"None",10]
["Weed_Management\\Herbicide_Applications",2,"1 recommended",5]
["Weed_Management\\Herbicide_Applications",3,"2 recommended",0]
["Weed_Management\\Herbicide_Applications",4,"3 or more recommended",-5]

{"sheet":"WABBM","index":15,"n_rows":30,"n_cols":12,"rows_kept":30,"cut":false,"hidden":true,"merged":[[0,0,0,3]]}
["Black Medic"]
["Category","Risk Level","Risk Level Description","Points",null,null,null,"Category","Max","Min","Risk","Selection"]
["Crop_Practices\\Rotation_Period",1,"Continuous",15,null,null,null,"Crop_Practices\\Rotation_Period",15,-10,{"$f":"getRiskValue(\"A:A\",H3,J3,L3,\"Single\")","v":15},{"$f":"IF(ISBLANK(sel_Crop_Practices\\Rotation_Period),\"\",sel_Crop_Practices\\Rotation_Period)","v":"Continuous"}]
["Crop_Practices\\Rotation_Period",2,"1 year",10,null,null,null,"Weed_History\\Black_Medic",15,0,15,{"$f":"IF(ISBLANK(sel_Weed_History\\Black_Medic),\"\",sel_Weed_History\\Black_Medic)","v":"Within last 2 years"}]
["Crop_Practices\\Rotation_Period",3,"2 years|3 years",-5,null,null,null,"Equipment\\Sanitation",10,-10,10,{"$f":"IF(ISBLANK(sel_Equipment\\Sanitation),\"\",sel_Equipment\\Sanitation)","v":"No"}]
["Crop_Practices\\Rotation_Period",4,"4 or more years",-10,null,null,null,"Field\\Prior_Land_Use",10,5,5,{"$f":"IF(ISBLANK(sel_Field\\Prior_Land_Use),\"\",sel_Field\\Prior_Land_Use)","v":"Turf"}]
["Equipment\\Sanitation",1,"No",10,null,null,null,"Field_Practices\\Bed_Mulch",10,-5,10,{"$f":"IF(ISBLANK(sel_Field_Practices\\Bed_Mulch),\"\",sel_Field_Practices\\Bed_Mulch)","v":"Clear Plastic"}]
["Equipment\\Sanitation",2,"Yes",-10,null,null,null,"Field_Practices\\Row_Middles",10,-10,10,{"$f":"IF(ISBLANK(sel_Field_Practices\\Row_Middles),\"\",sel_Field_Practices\\Row_Middles)","v":"Bare ground"}]
["Field\\Prior_Land_Use",1,"Cultivated",10,null,null,null,"Pest_Management\\Fumigation",10,-10,10,{"$f":"IF(ISBLANK(sel_Pest_Management\\Fumigation),\"\",sel_Pest_Management\\Fumigation)","v":"No"}]
["Field\\Prior_Land_Use",2,"Forest/fallow|Turf",5,null,null,null,"Weed_Management\\Herbicide_Applications",10,-5,10,{"$f":"IF(ISBLANK(sel_Weed_Management\\Herbicide_Applications),\"\",sel_Weed_Management\\Herbicide_Applications)","v":"None"}]
["Field_Practices\\Bed_Mulch",1,"Clear Plastic",10,null,null,null,"Weed_Management\\Hand_Weeding",5,-5,5,{"$f":"IF(ISBLANK(sel_Weed_Management\\Hand_Weeding),\"\",sel_Weed_Management\\Hand_Weeding)","v":"No"}]
["Field_Practices\\Bed_Mulch",2,"Colored Plastic",5]
["Field_Practices\\Bed_Mulch",3,"Black Plastic",0,null,null,null,"Total",{"$f":"SUMIF(I3:I11,\">0\")","v":95},{"$f":"SUMIF(J3:J11,\">0\")","v":5},{"$f":"MAX(WABBM_MinRiskIndex,SUM(K3:K11))","v":90}]
["Field_Practices\\Bed_Mulch",4,"Totally Impermeable Film (TIF)",-5]
["Field_Practices\\Row_Middles",1,"Bare ground",10,null,null,null,"High Risk Index",65]
["Field_Practices\\Row_Middles",2,"Cover crop (Thin stand)",5,null,null,null,"Moderate Risk Index",20]
["Field_Practices\\Row_Middles",3,"Cover crop (Moderate stand)",-5]
["Field_Practices\\Row_Middles",4,"Cover crop (Thick stand)|Tilled",-10]
["Pest_Management\\Fumigation",1,"No",10]
["Pest_Management\\Fumigation",2,"Yes",-10]
["Weed_History\\Black_Medic",1,"Within last 2 years",15]
["Weed_History\\Black_Medic",2,"Within 2 to 5 years",10]
["Weed_History\\Black_Medic",3,"More than 5 years ago",5]
["Weed_History\\Black_Medic",4,"Never",0]
["Weed_Management\\Hand_Weeding",1,"No",5]
["Weed_Management\\Hand_Weeding",2,"Yes",-5]
["Weed_Management\\Herbicide_Applications",1,"None",10]
["Weed_Management\\Herbicide_Applications",2,"1 recommended",5]
["Weed_Management\\Herbicide_Applications",3,"2 recommended",0]
["Weed_Management\\Herbicide_Applications",4,"3 or more recommended",-5]

{"sheet":"WABCG","index":16,"n_rows":31,"n_cols":12,"rows_kept":31,"cut":false,"hidden":true,"merged":[[0,0,0,3]]}
["Carolina Geranium"]
["Category","Risk Level","Risk Level Description","Points",null,null,null,"Category","Max","Min","Risk","Selection"]
["Crop_Practices\\Rotation_Period",1,"Continuous",15,null,null,null,"Crop_Practices\\Rotation_Period",15,-10,{"$f":"getRiskValue(\"A:A\",H3,J3,L3,\"Single\")","v":15},{"$f":"IF(ISBLANK(sel_Crop_Practices\\Rotation_Period),\"\",sel_Crop_Practices\\Rotation_Period)","v":"Continuous"}]
["Crop_Practices\\Rotation_Period",2,"1 year",10,null,null,null,"Field_Practices\\Row_Middles",15,-10,15,{"$f":"IF(ISBLANK(sel_Field_Practices\\Row_Middles),\"\",sel_Field_Practices\\Row_Middles)","v":"Bare ground"}]
["Crop_Practices\\Rotation_Period",3,"2 years|3 years",-5,null,null,null,"Weed_History\\Carolina_Geranium",15,0,15,{"$f":"IF(ISBLANK(sel_Weed_History\\Carolina_Geranium),\"\",sel_Weed_History\\Carolina_Geranium)","v":"Within last 2 years"}]
["Crop_Practices\\Rotation_Period",4,"4 or more years",-10,null,null,null,"Equipment\\Sanitation",10,-10,10,{"$f":"IF(ISBLANK(sel_Equipment\\Sanitation),\"\",sel_Equipment\\Sanitation)","v":"No"}]
["Equipment\\Sanitation",1,"No",10,null,null,null,"Field\\Prior_Land_Use",10,5,5,{"$f":"IF(ISBLANK(sel_Field\\Prior_Land_Use),\"\",sel_Field\\Prior_Land_Use)","v":"Turf"}]
["Equipment\\Sanitation",2,"Yes",-10,null,null,null,"Field_Practices\\Bed_Mulch",10,-5,10,{"$f":"IF(ISBLANK(sel_Field_Practices\\Bed_Mulch),\"\",sel_Field_Practices\\Bed_Mulch)","v":"Clear Plastic"}]
["Field\\Prior_Land_Use",1,"Cultivated",10,null,null,null,"Pest_Management\\Fumigation",10,-10,10,{"$f":"IF(ISBLANK(sel_Pest_Management\\Fumigation),\"\",sel_Pest_Management\\Fumigation)","v":"No"}]
["Field\\Prior_Land_Use",2,"Forest/fallow|Turf",5,null,null,null,"Weed_Management\\Herbicide_Applications",10,-5,10,{"$f":"IF(ISBLANK(sel_Weed_Management\\Herbicide_Applications),\"\",sel_Weed_Management\\Herbicide_Applications)","v":"None"}]
["Field_Practices\\Bed_Mulch",1,"Clear Plastic",10,null,null,null,"Weed_Management\\Hand_Weeding",5,-5,5,{"$f":"IF(ISBLANK(sel_Weed_Management\\Hand_Weeding),\"\",sel_Weed_Management\\Hand_Weeding)","v":"No"}]
["Field_Practices\\Bed_Mulch",2,"Colored Plastic",5]
["Field_Practices\\Bed_Mulch",3,"Black Plastic",0,null,null,null,"Total",{"$f":"SUMIF(I3:I11,\">0\")","v":100},{"$f":"SUMIF(J3:J11,\">0\")","v":5},{"$f":"MAX(WABCG_MinRiskIndex,SUM(K3:K11))","v":95}]
["Field_Practices\\Bed_Mulch",4,"Totally Impermeable Film (TIF)",-5]
["Field_Practices\\Row_Middles",1,"Bare ground",15,null,null,null,"High Risk Index",90]
["Field_Practices\\Row_Middles",2,"Cover crop (Thin stand)",10,null,null,null,"Moderate Risk Index",25]
["Field_Practices\\Row_Middles",3,"Cover crop (Moderate stand)",0]
["Field_Practices\\Row_Middles",4,"Cover crop (Thick stand)",-5]
["Field_Practices\\Row_Middles",5,"Tilled",-10]
["Pest_Management\\Fumigation",1,"No",10]
["Pest_Management\\Fumigation",2,"Yes",-10]
["Weed_History\\Carolina_Geranium",1,"Within last 2 years",15]
["Weed_History\\Carolina_Geranium",2,"Within 2 to 5 years",10]
["Weed_History\\Carolina_Geranium",3,"More than 5 years ago",5]
["Weed_History\\Carolina_Geranium",4,"Never",0]
["Weed_Management\\Hand_Weeding",1,"No",5]
["Weed_Management\\Hand_Weeding",2,"Yes",-5]
["Weed_Management\\Herbicide_Applications",1,"None",10]
["Weed_Management\\Herbicide_Applications",2,"1 recommended",5]
["Weed_Management\\Herbicide_Applications",3,"2 recommended",0]
["Weed_Management\\Herbicide_Applications",4,"3 or more recommended",-5]

{"sheet":"WABCW","index":17,"n_rows":30,"n_cols":12,"rows_kept":30,"cut":false,"hidden":true,"merged":[[0,0,0,3]]}
["Chickweed"]
["Category","Risk Level","Risk Level Description","Points",null,null,null,"Category","Max","Min","Risk","Selection"]
["Crop_Practices\\Rotation_Period",1,"Continuous",15,null,null,null,"Crop_Practices\\Rotation_Period",15,-10,{"$f":"getRiskValue(\"A:A\",H3,J3,L3,\"Single\")","v":15},{"$f":"IF(ISBLANK(sel_Crop_Practices\\Rotation_Period),\"\",sel_Crop_Practices\\Rotation_Period)","v":"Continuous"}]
["Crop_Practices\\Rotation_Period",2,"1 year",10,null,null,null,"Weed_History\\Chickweed",15,0,15,{"$f":"IF(ISBLANK(sel_Weed_History\\Chickweed),\"\",sel_Weed_History\\Chickweed)","v":"Within last 2 years"}]
["Crop_Practices\\Rotation_Period",3,"2 years|3 years",-5,null,null,null,"Equipment\\Sanitation",10,-10,10,{"$f":"IF(ISBLANK(sel_Equipment\\Sanitation),\"\",sel_Equipment\\Sanitation)","v":"No"}]
["Crop_Practices\\Rotation_Period",4,"4 or more years",-10,null,null,null,"Field\\Prior_Land_Use",10,5,5,{"$f":"IF(ISBLANK(sel_Field\\Prior_Land_Use),\"\",sel_Field\\Prior_Land_Use)","v":"Turf"}]
["Equipment\\Sanitation",1,"No",10,null,null,null,"Field_Practices\\Bed_Mulch",10,-5,10,{"$f":"IF(ISBLANK(sel_Field_Practices\\Bed_Mulch),\"\",sel_Field_Practices\\Bed_Mulch)","v":"Clear Plastic"}]
["Equipment\\Sanitation",2,"Yes",-10,null,null,null,"Field_Practices\\Row_Middles",10,-10,10,{"$f":"IF(ISBLANK(sel_Field_Practices\\Row_Middles),\"\",sel_Field_Practices\\Row_Middles)","v":"Bare ground"}]
["Field\\Prior_Land_Use",1,"Cultivated",10,null,null,null,"Pest_Management\\Fumigation",10,-10,10,{"$f":"IF(ISBLANK(sel_Pest_Management\\Fumigation),\"\",sel_Pest_Management\\Fumigation)","v":"No"}]
["Field\\Prior_Land_Use",2,"Forest/fallow|Turf",5,null,null,null,"Weed_Management\\Herbicide_Applications",10,-5,10,{"$f":"IF(ISBLANK(sel_Weed_Management\\Herbicide_Applications),\"\",sel_Weed_Management\\Herbicide_Applications)","v":"None"}]
["Field_Practices\\Bed_Mulch",1,"Clear Plastic",10,null,null,null,"Weed_Management\\Hand_Weeding",5,-5,5,{"$f":"IF(ISBLANK(sel_Weed_Management\\Hand_Weeding),\"\",sel_Weed_Management\\Hand_Weeding)","v":"No"}]
["Field_Practices\\Bed_Mulch",2,"Colored Plastic",5]
["Field_Practices\\Bed_Mulch",3,"Black Plastic",0,null,null,null,"Total",{"$f":"SUMIF(I3:I11,\">0\")","v":95},{"$f":"SUMIF(J3:J11,\">0\")","v":5},{"$f":"MAX(WABCW_MinRiskIndex,SUM(K3:K11))","v":90}]
["Field_Practices\\Bed_Mulch",4,"Totally Impermeable Film (TIF)",-5]
["Field_Practices\\Row_Middles",1,"Bare ground",10,null,null,null,"High Risk Index",65]
["Field_Practices\\Row_Middles",2,"Cover crop (Thin stand)",5,null,null,null,"Moderate Risk Index",20]
["Field_Practices\\Row_Middles",3,"Cover crop (Moderate stand)",-5]
["Field_Practices\\Row_Middles",4,"Cover crop (Thick stand)|Tilled",-10]
["Pest_Management\\Fumigation",1,"No",10]
["Pest_Management\\Fumigation",2,"Yes",-10]
["Weed_History\\Chickweed",1,"Within last 2 years",15]
["Weed_History\\Chickweed",2,"Within 2 to 5 years",10]
["Weed_History\\Chickweed",3,"More than 5 years ago",5]
["Weed_History\\Chickweed",4,"Never",0]
["Weed_Management\\Hand_Weeding",1,"No",5]
["Weed_Management\\Hand_Weeding",2,"Yes",-5]
["Weed_Management\\Herbicide_Applications",1,"None",10]
["Weed_Management\\Herbicide_Applications",2,"1 recommended",5]
["Weed_Management\\Herbicide_Applications",3,"2 recommended",0]
["Weed_Management\\Herbicide_Applications",4,"3 or more recommended",-5]

{"sheet":"WABCEP","index":18,"n_rows":32,"n_cols":12,"rows_kept":32,"cut":false,"hidden":true,"merged":[[0,0,0,3]]}
["Cutleaf Evening Primrose"]
["Category","Risk Level","Risk Level Description","Points",null,null,null,"Category","Max","Min","Risk","Selection"]
["Crop_Practices\\Rotation_Period",1,"Continuous",15,null,null,null,"Crop_Practices\\Rotation_Period",15,-10,{"$f":"getRiskValue(\"A:A\",H3,J3,L3,\"Single\")","v":15},{"$f":"IF(ISBLANK(sel_Crop_Practices\\Rotation_Period),\"\",sel_Crop_Practices\\Rotation_Period)","v":"Continuous"}]
["Crop_Practices\\Rotation_Period",2,"1 year",10,null,null,null,"Field_Practices\\Row_Middles",15,-10,15,{"$f":"IF(ISBLANK(sel_Field_Practices\\Row_Middles),\"\",sel_Field_Practices\\Row_Middles)","v":"Bare ground"}]
["Crop_Practices\\Rotation_Period",3,"2 years|3 years",-5,null,null,null,"Weed_History\\Cutleaf_Evening_Primrose",15,0,15,{"$f":"IF(ISBLANK(sel_Weed_History\\Cutleaf_Evening_Primrose),\"\",sel_Weed_History\\Cutleaf_Evening_Primrose)","v":"Within last 2 years"}]
["Crop_Practices\\Rotation_Period",4,"4 or more years",-10,null,null,null,"Equipment\\Sanitation",10,-10,10,{"$f":"IF(ISBLANK(sel_Equipment\\Sanitation),\"\",sel_Equipment\\Sanitation)","v":"No"}]
["Equipment\\Sanitation",1,"No",10,null,null,null,"Field\\Prior_Land_Use",10,0,0,{"$f":"IF(ISBLANK(sel_Field\\Prior_Land_Use),\"\",sel_Field\\Prior_Land_Use)","v":"Turf"}]
["Equipment\\Sanitation",2,"Yes",-10,null,null,null,"Field_Practices\\Bed_Mulch",10,-5,10,{"$f":"IF(ISBLANK(sel_Field_Practices\\Bed_Mulch),\"\",sel_Field_Practices\\Bed_Mulch)","v":"Clear Plastic"}]
["Field\\Prior_Land_Use",1,"Cultivated",10,null,null,null,"Pest_Management\\Fumigation",10,-10,10,{"$f":"IF(ISBLANK(sel_Pest_Management\\Fumigation),\"\",sel_Pest_Management\\Fumigation)","v":"No"}]
["Field\\Prior_Land_Use",2,"Forest/fallow",5,null,null,null,"Weed_Management\\Herbicide_Applications",10,-5,10,{"$f":"IF(ISBLANK(sel_Weed_Management\\Herbicide_Applications),\"\",sel_Weed_Management\\Herbicide_Applications)","v":"None"}]
["Field\\Prior_Land_Use",3,"Turf",0,null,null,null,"Weed_Management\\Hand_Weeding",5,-5,5,{"$f":"IF(ISBLANK(sel_Weed_Management\\Hand_Weeding),\"\",sel_Weed_Management\\Hand_Weeding)","v":"No"}]
["Field_Practices\\Bed_Mulch",1,"Clear Plastic",10]
["Field_Practices\\Bed_Mulch",2,"Colored Plastic",5,null,null,null,"Total",{"$f":"SUMIF(I3:I11,\">0\")","v":100},{"$f":"SUMIF(J3:J11,\">0\")","v":0},{"$f":"MAX(WABCEP_MinRiskIndex,SUM(K3:K11))","v":90}]
["Field_Practices\\Bed_Mulch",3,"Black Plastic",0]
["Field_Practices\\Bed_Mulch",4,"Totally Impermeable Film (TIF)",-5,null,null,null,"High Risk Index",90]
["Field_Practices\\Row_Middles",1,"Bare ground",15,null,null,null,"Moderate Risk Index",25]
["Field_Practices\\Row_Middles",2,"Cover crop (Thin stand)",10]
["Field_Practices\\Row_Middles",3,"Cover crop (Moderate stand)",0]
["Field_Practices\\Row_Middles",4,"Cover crop (Thick stand)",-5]
["Field_Practices\\Row_Middles",5,"Tilled",-10]
["Pest_Management\\Fumigation",1,"No",10]
["Pest_Management\\Fumigation",2,"Yes",-10]
["Weed_History\\Cutleaf_Evening_Primrose",1,"Within last 2 years",15]
["Weed_History\\Cutleaf_Evening_Primrose",2,"Within 2 to 5 years",10]
["Weed_History\\Cutleaf_Evening_Primrose",3,"More than 5 years ago",5]
["Weed_History\\Cutleaf_Evening_Primrose",4,"Never",0]
["Weed_Management\\Hand_Weeding",1,"No",5]
["Weed_Management\\Hand_Weeding",2,"Yes",-5]
["Weed_Management\\Herbicide_Applications",1,"None",10]
["Weed_Management\\Herbicide_Applications",2,"1 recommended",5]
["Weed_Management\\Herbicide_Applications",3,"2 recommended",0]
["Weed_Management\\Herbicide_Applications",4,"3 or more recommended",-5]

{"sheet":"WABHB","index":19,"n_rows":28,"n_cols":12,"rows_kept":28,"cut":false,"hidden":true,"merged":[[0,0,0,3]]}
["Henbit"]
["Category","Risk Level","Risk Level Description","Points",null,null,null,"Category","Max","Min","Risk","Selection"]
["Crop_Practices\\Rotation_Period",1,"Continuous",15,null,null,null,"Crop_Practices\\Rotation_Period",15,-10,{"$f":"getRiskValue(\"A:A\",H3,J3,L3,\"Single\")","v":15},{"$f":"IF(ISBLANK(sel_Crop_Practices\\Rotation_Period),\"\",sel_Crop_Practices\\Rotation_Period)","v":"Continuous"}]
["Crop_Practices\\Rotation_Period",2,"1 year",10,null,null,null,"Weed_History\\Henbit",15,0,15,{"$f":"IF(ISBLANK(sel_Weed_History\\Henbit),\"\",sel_Weed_History\\Henbit)","v":"Within last 2 years"}]
["Crop_Practices\\Rotation_Period",3,"2 years|3 years",-5,null,null,null,"Equipment\\Sanitation",10,-10,10,{"$f":"IF(ISBLANK(sel_Equipment\\Sanitation),\"\",sel_Equipment\\Sanitation)","v":"No"}]
["Crop_Practices\\Rotation_Period",4,"4 or more years",-10,null,null,null,"Field_Practices\\Bed_Mulch",10,-5,10,{"$f":"IF(ISBLANK(sel_Field_Practices\\Bed_Mulch),\"\",sel_Field_Practices\\Bed_Mulch)","v":"Clear Plastic"}]
["Equipment\\Sanitation",1,"No",10,null,null,null,"Field_Practices\\Row_Middles",10,-10,10,{"$f":"IF(ISBLANK(sel_Field_Practices\\Row_Middles),\"\",sel_Field_Practices\\Row_Middles)","v":"Bare ground"}]
["Equipment\\Sanitation",2,"Yes",-10,null,null,null,"Pest_Management\\Fumigation",10,-10,10,{"$f":"IF(ISBLANK(sel_Pest_Management\\Fumigation),\"\",sel_Pest_Management\\Fumigation)","v":"No"}]
["Field_Practices\\Bed_Mulch",1,"Clear Plastic",10,null,null,null,"Weed_Management\\Herbicide_Applications",10,-5,10,{"$f":"IF(ISBLANK(sel_Weed_Management\\Herbicide_Applications),\"\",sel_Weed_Management\\Herbicide_Applications)","v":"None"}]
["Field_Practices\\Bed_Mulch",2,"Colored Plastic",5,null,null,null,"Weed_Management\\Hand_Weeding",5,-5,5,{"$f":"IF(ISBLANK(sel_Weed_Management\\Hand_Weeding),\"\",sel_Weed_Management\\Hand_Weeding)","v":"No"}]
["Field_Practices\\Bed_Mulch",3,"Black Plastic",0]
["Field_Practices\\Bed_Mulch",4,"Totally Impermeable Film (TIF)",-5,null,null,null,"Total",{"$f":"SUMIF(I3:I10,\">0\")","v":85},{"$f":"SUMIF(J3:J10,\">0\")","v":0},{"$f":"MAX(WABHB_MinRiskIndex,SUM(K3:K10))","v":85}]
["Field_Practices\\Row_Middles",1,"Bare ground",10]
["Field_Practices\\Row_Middles",2,"Cover crop (Thin stand)",5,null,null,null,"High Risk Index",65]
["Field_Practices\\Row_Middles",3,"Cover crop (Moderate stand)",-5,null,null,null,"Moderate Risk Index",20]
["Field_Practices\\Row_Middles",4,"Cover crop (Thick stand)|Tilled",-10]
["Pest_Management\\Fumigation",1,"No",10]
["Pest_Management\\Fumigation",2,"Yes",-10]
["Weed_History\\Henbit",1,"Within last 2 years",15]
["Weed_History\\Henbit",2,"Within 2 to 5 years",10]
["Weed_History\\Henbit",3,"More than 5 years ago",5]
["Weed_History\\Henbit",4,"Never",0]
["Weed_Management\\Hand_Weeding",1,"No",5]
["Weed_Management\\Hand_Weeding",2,"Yes",-5]
["Weed_Management\\Herbicide_Applications",1,"None",10]
["Weed_Management\\Herbicide_Applications",2,"1 recommended",5]
["Weed_Management\\Herbicide_Applications",3,"2 recommended",0]
["Weed_Management\\Herbicide_Applications",4,"3 or more recommended",-5]

{"sheet":"WPC","index":20,"n_rows":29,"n_cols":12,"rows_kept":29,"cut":false,"hidden":true,"merged":[[0,0,0,3]]}
["Clover"]
["Category","Risk Level","Risk Level Description","Points",null,null,null,"Category","Max","Min","Risk","Selection"]
["Crop_Practices\\Rotation_Period",1,"Continuous",20,null,null,null,"Crop_Practices\\Rotation_Period",20,0,{"$f":"getRiskValue(\"A:A\",H3,J3,L3,\"Single\")","v":20},{"$f":"IF(ISBLANK(sel_Crop_Practices\\Rotation_Period),\"\",sel_Crop_Practices\\Rotation_Period)","v":"Continuous"}]
["Crop_Practices\\Rotation_Period",2,"1 year",10,null,null,null,"Weed_History\\Clover",15,0,15,{"$f":"IF(ISBLANK(sel_Weed_History\\Clover),\"\",sel_Weed_History\\Clover)","v":"Within last 2 years"}]
["Crop_Practices\\Rotation_Period",3,"2 years|3 years",5,null,null,null,"Equipment\\Sanitation",10,-10,10,{"$f":"IF(ISBLANK(sel_Equipment\\Sanitation),\"\",sel_Equipment\\Sanitation)","v":"No"}]
["Crop_Practices\\Rotation_Period",4,"4 or more years",0,null,null,null,"Field\\Prior_Land_Use",10,5,10,{"$f":"IF(ISBLANK(sel_Field\\Prior_Land_Use),\"\",sel_Field\\Prior_Land_Use)","v":"Turf"}]
["Equipment\\Sanitation",1,"No",10,null,null,null,"Field_Practices\\Bed_Mulch",10,-5,10,{"$f":"IF(ISBLANK(sel_Field_Practices\\Bed_Mulch),\"\",sel_Field_Practices\\Bed_Mulch)","v":"Clear Plastic"}]
["Equipment\\Sanitation",2,"Yes",-10,null,null,null,"Field_Practices\\Row_Middles",10,-5,10,{"$f":"IF(ISBLANK(sel_Field_Practices\\Row_Middles),\"\",sel_Field_Practices\\Row_Middles)","v":"Bare ground"}]
["Field\\Prior_Land_Use",1,"Turf",10,null,null,null,"Pest_Management\\Fumigation",10,-10,10,{"$f":"IF(ISBLANK(sel_Pest_Management\\Fumigation),\"\",sel_Pest_Management\\Fumigation)","v":"No"}]
["Field\\Prior_Land_Use",2,"Forest/fallow|Cultivated",5,null,null,null,"Weed_Management\\Herbicide_Applications",10,-5,10,{"$f":"IF(ISBLANK(sel_Weed_Management\\Herbicide_Applications),\"\",sel_Weed_Management\\Herbicide_Applications)","v":"None"}]
["Field_Practices\\Bed_Mulch",1,"Clear Plastic",10,null,null,null,"Weed_Management\\Hand_Weeding",5,-5,5,{"$f":"IF(ISBLANK(sel_Weed_Management\\Hand_Weeding),\"\",sel_Weed_Management\\Hand_Weeding)","v":"No"}]
["Field_Practices\\Bed_Mulch",2,"Colored Plastic",5]
["Field_Practices\\Bed_Mulch",3,"Black Plastic",0,null,null,null,"Total",{"$f":"SUMIF(I3:I11,\">0\")","v":100},{"$f":"SUMIF(J3:J11,\">0\")","v":5},{"$f":"MAX(WPC_MinRiskIndex,SUM(K3:K11))","v":100}]
["Field_Practices\\Bed_Mulch",4,"Totally Impermeable Film (TIF)",-5]
["Field_Practices\\Row_Middles",1,"Bare ground",10,null,null,null,"High Risk Index",55]
["Field_Practices\\Row_Middles",2,"Cover crop (Thin stand)|Tilled",5,null,null,null,"Moderate Risk Index",15]
["Field_Practices\\Row_Middles",3,"Cover crop (Moderate stand)",0]
["Field_Practices\\Row_Middles",4,"Cover crop (Thick stand)",-5]
["Pest_Management\\Fumigation",1,"No",10]
["Pest_Management\\Fumigation",2,"Yes",-10]
["Weed_History\\Clover",1,"Within last 2 years",15]
["Weed_History\\Clover",2,"Within 2 to 5 years",10]
["Weed_History\\Clover",3,"More than 5 years ago",5]
["Weed_History\\Clover",4,"Never",0]
["Weed_Management\\Hand_Weeding",1,"No",5]
["Weed_Management\\Hand_Weeding",2,"Yes",-5]
["Weed_Management\\Herbicide_Applications",1,"None",10]
["Weed_Management\\Herbicide_Applications",2,"1 recommended",5]
["Weed_Management\\Herbicide_Applications",3,"2 recommended|3 or more recommended",-5]

{"sheet":"WPCD","index":21,"n_rows":29,"n_cols":12,"rows_kept":29,"cut":false,"hidden":true,"merged":[[0,0,0,3]]}
["Curly Dock"]
["Category","Risk Level","Risk Level Description","Points",null,null,null,"Category","Max","Min","Risk","Selection"]
["Crop_Practices\\Rotation_Period",1,"Continuous",15,null,null,null,"Crop_Practices\\Rotation_Period",15,0,{"$f":"getRiskValue(\"A:A\",H3,J3,L3,\"Single\")","v":15},{"$f":"IF(ISBLANK(sel_Crop_Practices\\Rotation_Period),\"\",sel_Crop_Practices\\Rotation_Period)","v":"Continuous"}]
["Crop_Practices\\Rotation_Period",2,"1 year",10,null,null,null,"Weed_History\\Curly_Dock",15,0,15,{"$f":"IF(ISBLANK(sel_Weed_History\\Curly_Dock),\"\",sel_Weed_History\\Curly_Dock)","v":"Within last 2 years"}]
["Crop_Practices\\Rotation_Period",3,"2 years|3 years",5,null,null,null,"Equipment\\Sanitation",10,-10,10,{"$f":"IF(ISBLANK(sel_Equipment\\Sanitation),\"\",sel_Equipment\\Sanitation)","v":"No"}]
["Crop_Practices\\Rotation_Period",4,"4 or more years",0,null,null,null,"Field\\Prior_Land_Use",10,0,0,{"$f":"IF(ISBLANK(sel_Field\\Prior_Land_Use),\"\",sel_Field\\Prior_Land_Use)","v":"Turf"}]
["Equipment\\Sanitation",1,"No",10,null,null,null,"Field_Practices\\Bed_Mulch",10,-5,10,{"$f":"IF(ISBLANK(sel_Field_Practices\\Bed_Mulch),\"\",sel_Field_Practices\\Bed_Mulch)","v":"Clear Plastic"}]
["Equipment\\Sanitation",2,"Yes",-10,null,null,null,"Field_Practices\\Row_Middles",10,-5,10,{"$f":"IF(ISBLANK(sel_Field_Practices\\Row_Middles),\"\",sel_Field_Practices\\Row_Middles)","v":"Bare ground"}]
["Field\\Prior_Land_Use",1,"Forest/fallow|Cultivated",10,null,null,null,"Pest_Management\\Fumigation",10,-10,10,{"$f":"IF(ISBLANK(sel_Pest_Management\\Fumigation),\"\",sel_Pest_Management\\Fumigation)","v":"No"}]
["Field\\Prior_Land_Use",2,"Turf",0,null,null,null,"Weed_Management\\Herbicide_Applications",10,-5,10,{"$f":"IF(ISBLANK(sel_Weed_Management\\Herbicide_Applications),\"\",sel_Weed_Management\\Herbicide_Applications)","v":"None"}]
["Field_Practices\\Bed_Mulch",1,"Clear Plastic",10,null,null,null,"Weed_Management\\Hand_Weeding",5,-5,5,{"$f":"IF(ISBLANK(sel_Weed_Management\\Hand_Weeding),\"\",sel_Weed_Management\\Hand_Weeding)","v":"No"}]
["Field_Practices\\Bed_Mulch",2,"Colored Plastic",5]
["Field_Practices\\Bed_Mulch",3,"Black Plastic",0,null,null,null,"Total",{"$f":"SUMIF(I3:I11,\">0\")","v":95},{"$f":"SUMIF(J3:J11,\">0\")","v":0},{"$f":"MAX(WPCD_MinRiskIndex,SUM(K3:K11))","v":85}]
["Field_Practices\\Bed_Mulch",4,"Totally Impermeable Film (TIF)",-5]
["Field_Practices\\Row_Middles",1,"Bare ground",10,null,null,null,"High Risk Index",55]
["Field_Practices\\Row_Middles",2,"Cover crop (Thin stand)",5,null,null,null,"Moderate Risk Index",15]
["Field_Practices\\Row_Middles",3,"Cover crop (Moderate stand)",0]
["Field_Practices\\Row_Middles",4,"Cover crop (Thick stand)|Tilled",-5]
["Pest_Management\\Fumigation",1,"No",10]
["Pest_Management\\Fumigation",2,"Yes",-10]
["Weed_History\\Curly_Dock",1,"Within last 2 years",15]
["Weed_History\\Curly_Dock",2,"Within 2 to 5 years",10]
["Weed_History\\Curly_Dock",3,"More than 5 years ago",5]
["Weed_History\\Curly_Dock",4,"Never",0]
["Weed_Management\\Hand_Weeding",1,"No",5]
["Weed_Management\\Hand_Weeding",2,"Yes",-5]
["Weed_Management\\Herbicide_Applications",1,"None",10]
["Weed_Management\\Herbicide_Applications",2,"1 recommended",5]
["Weed_Management\\Herbicide_Applications",3,"2 recommended|3 or more recommended",-5]

{"sheet":"WPD","index":22,"n_rows":30,"n_cols":12,"rows_kept":30,"cut":false,"hidden":true,"merged":[[0,0,0,3]]}
["Dandelion"]
["Category","Risk Level","Risk Level Description","Points",null,null,null,"Category","Max","Min","Risk","Selection"]
["Crop_Practices\\Rotation_Period",1,"Continuous",15,null,null,null,"Crop_Practices\\Rotation_Period",15,0,{"$f":"getRiskValue(\"A:A\",H3,J3,L3,\"Single\")","v":15},{"$f":"IF(ISBLANK(sel_Crop_Practices\\Rotation_Period),\"\",sel_Crop_Practices\\Rotation_Period)","v":"Continuous"}]
["Crop_Practices\\Rotation_Period",2,"1 year",10,null,null,null,"Equipment\\Sanitation",15,-10,15,{"$f":"IF(ISBLANK(sel_Equipment\\Sanitation),\"\",sel_Equipment\\Sanitation)","v":"No"}]
["Crop_Practices\\Rotation_Period",3,"2 years|3 years",5,null,null,null,"Weed_History\\Dandelion",15,0,15,{"$f":"IF(ISBLANK(sel_Weed_History\\Dandelion),\"\",sel_Weed_History\\Dandelion)","v":"Within last 2 years"}]
["Crop_Practices\\Rotation_Period",4,"4 or more years",0,null,null,null,"Field\\Prior_Land_Use",10,5,10,{"$f":"IF(ISBLANK(sel_Field\\Prior_Land_Use),\"\",sel_Field\\Prior_Land_Use)","v":"Turf"}]
["Equipment\\Sanitation",1,"No",15,null,null,null,"Field_Practices\\Bed_Mulch",10,-5,10,{"$f":"IF(ISBLANK(sel_Field_Practices\\Bed_Mulch),\"\",sel_Field_Practices\\Bed_Mulch)","v":"Clear Plastic"}]
["Equipment\\Sanitation",2,"Yes",-10,null,null,null,"Field_Practices\\Row_Middles",10,-5,10,{"$f":"IF(ISBLANK(sel_Field_Practices\\Row_Middles),\"\",sel_Field_Practices\\Row_Middles)","v":"Bare ground"}]
["Field\\Prior_Land_Use",1,"Cultivated|Turf",10,null,null,null,"Pest_Management\\Fumigation",10,-10,10,{"$f":"IF(ISBLANK(sel_Pest_Management\\Fumigation),\"\",sel_Pest_Management\\Fumigation)","v":"No"}]
["Field\\Prior_Land_Use",2,"Forest/fallow",5,null,null,null,"Weed_Management\\Herbicide_Applications",10,-5,10,{"$f":"IF(ISBLANK(sel_Weed_Management\\Herbicide_Applications),\"\",sel_Weed_Management\\Herbicide_Applications)","v":"None"}]
["Field_Practices\\Bed_Mulch",1,"Clear Plastic",10,null,null,null,"Weed_Management\\Hand_Weeding",5,-5,5,{"$f":"IF(ISBLANK(sel_Weed_Management\\Hand_Weeding),\"\",sel_Weed_Management\\Hand_Weeding)","v":"No"}]
["Field_Practices\\Bed_Mulch",2,"Colored Plastic",5]
["Field_Practices\\Bed_Mulch",3,"Black Plastic",0,null,null,null,"Total",{"$f":"SUMIF(I3:I11,\">0\")","v":100},{"$f":"SUMIF(J3:J11,\">0\")","v":5},{"$f":"MAX(WPD_MinRiskIndex,SUM(K3:K11))","v":100}]
["Field_Practices\\Bed_Mulch",4,"Totally Impermeable Film (TIF)",-5]
["Field_Practices\\Row_Middles",1,"Bare ground",10,null,null,null,"High Risk Index",55]
["Field_Practices\\Row_Middles",2,"Cover crop (Thin stand)|Tilled",5,null,null,null,"Moderate Risk Index",15]
["Field_Practices\\Row_Middles",3,"Cover crop (Moderate stand)",0]
["Field_Practices\\Row_Middles",4,"Cover crop (Thick stand)",-5]
["Pest_Management\\Fumigation",1,"No",10]
["Pest_Management\\Fumigation",2,"Yes",-10]
["Weed_History\\Dandelion",1,"Within last 2 years",15]
["Weed_History\\Dandelion",2,"Within 2 to 5 years",10]
["Weed_History\\Dandelion",3,"More than 5 years ago",5]
["Weed_History\\Dandelion",4,"Never",0]
["Weed_Management\\Hand_Weeding",1,"No",5]
["Weed_Management\\Hand_Weeding",2,"Yes",-5]
["Weed_Management\\Herbicide_Applications",1,"None",10]
["Weed_Management\\Herbicide_Applications",2,"1 recommended",5]
["Weed_Management\\Herbicide_Applications",3,"2 recommended",0]
["Weed_Management\\Herbicide_Applications",4,"3 or more recommended",-5]

{"sheet":"WPRS","index":23,"n_rows":29,"n_cols":12,"rows_kept":29,"cut":false,"hidden":true,"merged":[[0,0,0,3]]}
["Red Sorrel"]
["Category","Risk Level","Risk Level Description","Points",null,null,null,"Category","Max","Min","Risk","Selection"]
["Crop_Practices\\Rotation_Period",1,"Continuous",15,null,null,null,"Crop_Practices\\Rotation_Period",15,0,{"$f":"getRiskValue(\"A:A\",H3,J3,L3,\"Single\")","v":15},{"$f":"IF(ISBLANK(sel_Crop_Practices\\Rotation_Period),\"\",sel_Crop_Practices\\Rotation_Period)","v":"Continuous"}]
["Crop_Practices\\Rotation_Period",2,"1 year",10,null,null,null,"Weed_History\\Red_Sorrel",15,0,15,{"$f":"IF(ISBLANK(sel_Weed_History\\Red_Sorrel),\"\",sel_Weed_History\\Red_Sorrel)","v":"Within last 2 years"}]
["Crop_Practices\\Rotation_Period",3,"2 years|3 years",5,null,null,null,"Equipment\\Sanitation",10,-10,10,{"$f":"IF(ISBLANK(sel_Equipment\\Sanitation),\"\",sel_Equipment\\Sanitation)","v":"No"}]
["Crop_Practices\\Rotation_Period",4,"4 or more years",0,null,null,null,"Field\\Prior_Land_Use",10,5,5,{"$f":"IF(ISBLANK(sel_Field\\Prior_Land_Use),\"\",sel_Field\\Prior_Land_Use)","v":"Turf"}]
["Equipment\\Sanitation",1,"No",10,null,null,null,"Field_Practices\\Bed_Mulch",10,-5,10,{"$f":"IF(ISBLANK(sel_Field_Practices\\Bed_Mulch),\"\",sel_Field_Practices\\Bed_Mulch)","v":"Clear Plastic"}]
["Equipment\\Sanitation",2,"Yes",-10,null,null,null,"Field_Practices\\Row_Middles",10,-5,10,{"$f":"IF(ISBLANK(sel_Field_Practices\\Row_Middles),\"\",sel_Field_Practices\\Row_Middles)","v":"Bare ground"}]
["Field\\Prior_Land_Use",1,"Cultivated",10,null,null,null,"Pest_Management\\Fumigation",10,-10,10,{"$f":"IF(ISBLANK(sel_Pest_Management\\Fumigation),\"\",sel_Pest_Management\\Fumigation)","v":"No"}]
["Field\\Prior_Land_Use",2,"Forest/fallow|Turf",5,null,null,null,"Weed_Management\\Herbicide_Applications",10,-5,10,{"$f":"IF(ISBLANK(sel_Weed_Management\\Herbicide_Applications),\"\",sel_Weed_Management\\Herbicide_Applications)","v":"None"}]
["Field_Practices\\Bed_Mulch",1,"Clear Plastic",10,null,null,null,"Weed_Management\\Hand_Weeding",5,-5,5,{"$f":"IF(ISBLANK(sel_Weed_Management\\Hand_Weeding),\"\",sel_Weed_Management\\Hand_Weeding)","v":"No"}]
["Field_Practices\\Bed_Mulch",2,"Colored Plastic",5]
["Field_Practices\\Bed_Mulch",3,"Black Plastic",0,null,null,null,"Total",{"$f":"SUMIF(I3:I11,\">0\")","v":95},{"$f":"SUMIF(J3:J11,\">0\")","v":5},{"$f":"MAX(WPRS_MinRiskIndex,SUM(K3:K11))","v":90}]
["Field_Practices\\Bed_Mulch",4,"Totally Impermeable Film (TIF)",-5]
["Field_Practices\\Row_Middles",1,"Bare ground",10,null,null,null,"High Risk Index",55]
["Field_Practices\\Row_Middles",2,"Cover crop (Thin stand)",5,null,null,null,"Moderate Risk Index",15]
["Field_Practices\\Row_Middles",3,"Cover crop (Moderate stand)",0]
["Field_Practices\\Row_Middles",4,"Cover crop (Thick stand)|Tilled",-5]
["Pest_Management\\Fumigation",1,"No",10]
["Pest_Management\\Fumigation",2,"Yes",-10]
["Weed_History\\Red_Sorrel",1,"Within last 2 years",15]
["Weed_History\\Red_Sorrel",2,"Within 3 to 5 years",10]
["Weed_History\\Red_Sorrel",3,"More than 5 years ago",5]
["Weed_History\\Red_Sorrel",4,"Never",0]
["Weed_Management\\Hand_Weeding",1,"No",5]
["Weed_Management\\Hand_Weeding",2,"Yes",-5]
["Weed_Management\\Herbicide_Applications",1,"None",10]
["Weed_Management\\Herbicide_Applications",2,"1 recommended",5]
["Weed_Management\\Herbicide_Applications",3,"2 recommended|3 or more recommended",-5]

{"sheet":"FRA","index":24,"n_rows":29,"n_cols":12,"rows_kept":29,"cut":false,"hidden":true,"merged":[[0,0,0,3]]}
["Anthracnose Fruit Rot"]
["Category","Risk Level","Risk Level Description","Points",null,null,null,"Category","Max","Min","Risk","Selection"]
["Crop_Practices\\Cultivar",1,"Other",10,null,null,null,"Crop_Practices\\Rotation_Period",15,0,{"$f":"getRiskValue(\"A:A\",H3,J3,L3,\"Single\")","v":15},{"$f":"IF(ISBLANK(sel_Crop_Practices\\Rotation_Period),\"\",sel_Crop_Practices\\Rotation_Period)","v":"Continuous"}]
["Crop_Practices\\Cultivar",2,"Sweet Charlie",5,null,null,null,"Field_Practices\\Fertility_Program",15,5,5,{"$f":"IF(ISBLANK(sel_Field_Practices\\Fertility_Program),\"\",sel_Field_Practices\\Fertility_Program)","v":"Standard"}]
["Crop_Practices\\Rotation_Period",1,"Continuous",15,null,null,null,"Crop_Practices\\Cultivar",10,5,5,{"$f":"IF(ISBLANK(sel_Crop_Practices\\Cultivar),\"\",sel_Crop_Practices\\Cultivar)","v":"Sweet Charlie"}]
["Crop_Practices\\Rotation_Period",2,"1 year",10,null,null,null,"Crop_Practices\\Transplants",10,-5,10,{"$f":"IF(ISBLANK(sel_Crop_Practices\\Transplants),\"\",sel_Crop_Practices\\Transplants)","v":"Not clean"}]
["Crop_Practices\\Rotation_Period",3,"2 years|3 years",5,null,null,null,"Pest_History\\Anthracnose_Fruit_Rot",10,-5,10,{"$f":"IF(ISBLANK(sel_Pest_History\\Anthracnose_Fruit_Rot),\"\",sel_Pest_History\\Anthracnose_Fruit_Rot)","v":"Within last 2 years"}]
["Crop_Practices\\Rotation_Period",4,"4 or more years",0,null,null,null,"Pest_Management\\Fungicides",10,-10,10,{"$f":"IF(ISBLANK(sel_Pest_Management\\Fungicides),\"\",sel_Pest_Management\\Fungicides)","v":"None"}]
["Crop_Practices\\Transplants",1,"Not clean",10,null,null,null,"Weather_Conditions\\Moisture",10,-5,0,{"$f":"IF(ISBLANK(sel_Weather_Conditions\\Moisture),\"\",sel_Weather_Conditions\\Moisture)","v":"Adequate"}]
["Crop_Practices\\Transplants",2,"Clean",-5,null,null,null,"Weather_Conditions\\Temperature",10,-5,0,{"$f":"IF(ISBLANK(sel_Weather_Conditions\\Temperature),\"\",sel_Weather_Conditions\\Temperature)","v":"Normal"}]
["Field_Practices\\Bed_Management",1,"None or minimal",5,null,null,null,"Field_Practices\\Bed_Management",5,-5,5,{"$f":"IF(ISBLANK(sel_Field_Practices\\Bed_Management),\"\",sel_Field_Practices\\Bed_Management)","v":"None or minimal"}]
["Field_Practices\\Bed_Management",2,"Weeds and dead leaves removed",-5]
["Field_Practices\\Fertility_Program",1,"High nitrogen",15,null,null,null,"Total",{"$f":"SUMIF(I3:I11,\">0\")","v":95},{"$f":"SUMIF(J3:J11,\">0\")","v":10},{"$f":"MAX(FRA_MinRiskIndex,SUM(K3:K11))","v":60}]
["Field_Practices\\Fertility_Program",2,"Standard",5]
["Pest_History\\Anthracnose_Fruit_Rot",1,"Within last 2 years",10,null,null,null,"High Risk Index",50]
["Pest_History\\Anthracnose_Fruit_Rot",2,"Within 2 to 5 years",5,null,null,null,"Moderate Risk Index",20]
["Pest_History\\Anthracnose_Fruit_Rot",3,"More than 5 years",0]
["Pest_History\\Anthracnose_Fruit_Rot",4,"Never",-5]
["Pest_Management\\Fungicides",1,"None",10]
["Pest_Management\\Fungicides",2,"1 recommended",5]
["Pest_Management\\Fungicides",3,"2 to 3 recommended",0]
["Pest_Management\\Fungicides",4,"4 to 5 recommended",-5]
["Pest_Management\\Fungicides",5,"6 or more recommended",-10]
["Weather_Conditions\\Moisture",1,"Wet/Humid",10]
["Weather_Conditions\\Moisture",2,"Adequate",0]
["Weather_Conditions\\Moisture",3,"Dry",-5]
["Weather_Conditions\\Temperature",1,"Warm/Hot",10]
["Weather_Conditions\\Temperature",2,"Normal",0]
["Weather_Conditions\\Temperature",3,"Cool",-5]

{"sheet":"FRB","index":25,"n_rows":27,"n_cols":12,"rows_kept":27,"cut":false,"hidden":true,"merged":[[0,0,0,3]]}
["Gray Mold (Botrytis)"]
["Category","Risk Level","Risk Level Description","Points",null,null,null,"Category","Max","Min","Risk","Selection"]
["Crop_Practices\\Rotation_Period",1,"Continuous",15,null,null,null,"Crop_Practices\\Rotation_Period",15,0,{"$f":"getRiskValue(\"A:A\",H3,J3,L3,\"Single\")","v":15},{"$f":"IF(ISBLANK(sel_Crop_Practices\\Rotation_Period),\"\",sel_Crop_Practices\\Rotation_Period)","v":"Continuous"}]
["Crop_Practices\\Rotation_Period",2,"1 year",10,null,null,null,"Field_Practices\\Fertility_Program",15,5,5,{"$f":"IF(ISBLANK(sel_Field_Practices\\Fertility_Program),\"\",sel_Field_Practices\\Fertility_Program)","v":"Standard"}]
["Crop_Practices\\Rotation_Period",3,"2 years|3 years",5,null,null,null,"Crop_Practices\\Transplants",10,-5,10,{"$f":"IF(ISBLANK(sel_Crop_Practices\\Transplants),\"\",sel_Crop_Practices\\Transplants)","v":"Not clean"}]
["Crop_Practices\\Rotation_Period",4,"4 or more years",0,null,null,null,"Pest_History\\Gray_Mold_Fruit_Rot",10,-5,10,{"$f":"IF(ISBLANK(sel_Pest_History\\Gray_Mold_Fruit_Rot),\"\",sel_Pest_History\\Gray_Mold_Fruit_Rot)","v":"Within last 2 years"}]
["Crop_Practices\\Transplants",1,"Not clean",10,null,null,null,"Pest_Management\\Fungicides",10,-10,10,{"$f":"IF(ISBLANK(sel_Pest_Management\\Fungicides),\"\",sel_Pest_Management\\Fungicides)","v":"None"}]
["Crop_Practices\\Transplants",2,"Clean",-5,null,null,null,"Weather_Conditions\\Moisture",10,-5,0,{"$f":"IF(ISBLANK(sel_Weather_Conditions\\Moisture),\"\",sel_Weather_Conditions\\Moisture)","v":"Adequate"}]
["Field_Practices\\Bed_Management",1,"None or minimal",5,null,null,null,"Weather_Conditions\\Temperature",10,-5,0,{"$f":"IF(ISBLANK(sel_Weather_Conditions\\Temperature),\"\",sel_Weather_Conditions\\Temperature)","v":"Normal"}]
["Field_Practices\\Bed_Management",2,"Weeds and dead leaves removed",-5,null,null,null,"Field_Practices\\Bed_Management",5,-5,5,{"$f":"IF(ISBLANK(sel_Field_Practices\\Bed_Management),\"\",sel_Field_Practices\\Bed_Management)","v":"None or minimal"}]
["Field_Practices\\Fertility_Program",1,"High nitrogen",15]
["Field_Practices\\Fertility_Program",2,"Standard",5,null,null,null,"Total",{"$f":"SUMIF(I3:I10,\">0\")","v":85},{"$f":"SUMIF(J3:J10,\">0\")","v":5},{"$f":"MAX(FRB_MinRiskIndex,SUM(K3:K10))","v":55}]
["Pest_History\\Gray_Mold_Fruit_Rot",1,"Within last 2 years",10]
["Pest_History\\Gray_Mold_Fruit_Rot",2,"Within 2 to 5 years",5,null,null,null,"High Risk Index",40]
["Pest_History\\Gray_Mold_Fruit_Rot",3,"More than 5 years",0,null,null,null,"Moderate Risk Index",15]
["Pest_History\\Gray_Mold_Fruit_Rot",4,"Never",-5]
["Pest_Management\\Fungicides",1,"None",10]
["Pest_Management\\Fungicides",2,"1 recommended",5]
["Pest_Management\\Fungicides",3,"2 to 3 recommended",0]
["Pest_Management\\Fungicides",4,"4 to 5 recommended",-5]
["Pest_Management\\Fungicides",5,"6 or more recommended",-10]
["Weather_Conditions\\Moisture",1,"Wet/Humid",10]
["Weather_Conditions\\Moisture",2,"Adequate",0]
["Weather_Conditions\\Moisture",3,"Dry",-5]
["Weather_Conditions\\Temperature",1,"Cool",10]
["Weather_Conditions\\Temperature",2,"Normal",0]
["Weather_Conditions\\Temperature",3,"Warm/Hot",-5]

{"sheet":"CRA","index":26,"n_rows":25,"n_cols":12,"rows_kept":25,"cut":false,"hidden":true,"merged":[[0,0,0,3]]}
["Anthracnose Crown Rot"]
["Category","Risk Level","Risk Level Description","Points",null,null,null,"Category","Max","Min","Risk","Selection"]
["Crop_Practices\\Cultivar",1,"Sweet Charlie",15,null,null,null,"Crop_Practices\\Cultivar",15,5,{"$f":"getRiskValue(\"A:A\",H3,J3,L3,\"Single\")","v":15},{"$f":"IF(ISBLANK(sel_Crop_Practices\\Cultivar),\"\",sel_Crop_Practices\\Cultivar)","v":"Sweet Charlie"}]
["Crop_Practices\\Cultivar",2,"Other",5,null,null,null,"Crop_Practices\\Rotation_Period",15,0,15,{"$f":"IF(ISBLANK(sel_Crop_Practices\\Rotation_Period),\"\",sel_Crop_Practices\\Rotation_Period)","v":"Continuous"}]
["Crop_Practices\\Rotation_Period",1,"Continuous",15,null,null,null,"Pest_Management\\Fungicides",15,-5,15,{"$f":"IF(ISBLANK(sel_Pest_Management\\Fungicides),\"\",sel_Pest_Management\\Fungicides)","v":"None"}]
["Crop_Practices\\Rotation_Period",2,"1 year",10,null,null,null,"Crop_Practices\\Transplants",10,-5,10,{"$f":"IF(ISBLANK(sel_Crop_Practices\\Transplants),\"\",sel_Crop_Practices\\Transplants)","v":"Not clean"}]
["Crop_Practices\\Rotation_Period",3,"2 years|3 years",5,null,null,null,"Pest_History\\Anthracnose_Crown_Rot",10,-5,10,{"$f":"IF(ISBLANK(sel_Pest_History\\Anthracnose_Crown_Rot),\"\",sel_Pest_History\\Anthracnose_Crown_Rot)","v":"Within last 2 years"}]
["Crop_Practices\\Rotation_Period",4,"4 or more years",0,null,null,null,"Weather_Conditions\\Moisture",10,-5,0,{"$f":"IF(ISBLANK(sel_Weather_Conditions\\Moisture),\"\",sel_Weather_Conditions\\Moisture)","v":"Adequate"}]
["Crop_Practices\\Transplants",1,"Not clean",10,null,null,null,"Weather_Conditions\\Temperature",10,-5,0,{"$f":"IF(ISBLANK(sel_Weather_Conditions\\Temperature),\"\",sel_Weather_Conditions\\Temperature)","v":"Normal"}]
["Crop_Practices\\Transplants",2,"Clean",-5]
["Pest_History\\Anthracnose_Crown_Rot",1,"Within last 2 years",10,null,null,null,"Total",{"$f":"SUMIF(I3:I9,\">0\")","v":85},{"$f":"SUMIF(J3:J9,\">0\")","v":5},{"$f":"MAX(CRA_MinRiskIndex,SUM(K3:K9))","v":65}]
["Pest_History\\Anthracnose_Crown_Rot",2,"Within 2 to 5 years",5]
["Pest_History\\Anthracnose_Crown_Rot",3,"More than 5 years ago",0,null,null,null,"High Risk Index",40]
["Pest_History\\Anthracnose_Crown_Rot",4,"Never",-5,null,null,null,"Moderate Risk Index",15]
["Pest_Management\\Fungicides",1,"None",15]
["Pest_Management\\Fungicides",2,"1 recommended",10]
["Pest_Management\\Fungicides",3,"2 to 3 recommended",5]
["Pest_Management\\Fungicides",4,"4 to 5 recommended",0]
["Pest_Management\\Fungicides",5,"6 or more recommended",-5]
["Weather_Conditions\\Moisture",1,"Wet/Humid",10]
["Weather_Conditions\\Moisture",2,"Adequate",0]
["Weather_Conditions\\Moisture",3,"Dry",-5]
["Weather_Conditions\\Temperature",1,"Cool",10]
["Weather_Conditions\\Temperature",2,"Normal",0]
["Weather_Conditions\\Temperature",3,"Warm/Hot",-5]

{"sheet":"CRPHY","index":27,"n_rows":13,"n_cols":12,"rows_kept":13,"cut":false,"hidden":true,"merged":[[0,0,0,3]]}
["Phytophthora Root Rot"]
["Category","Risk Level","Risk Level Description","Points",null,null,null,"Category","Max","Min","Risk","Selection"]
["Crop_Practices\\Transplants",1,"Not clean",10,null,null,null,"Pest_Management\\Fungicides",30,10,{"$f":"getRiskValue(\"A:A\",H3,J3,L3,\"Single\")","v":30},{"$f":"IF(ISBLANK(sel_Pest_Management\\Fungicides),\"\",sel_Pest_Management\\Fungicides)","v":"None"}]
["Crop_Practices\\Transplants",2,"Clean",-5,null,null,null,"Crop_Practices\\Transplants",10,-5,{"$f":"getRiskValue(\"A:A\",H4,J4,L4,\"Single\")","v":10},{"$f":"IF(ISBLANK(sel_Crop_Practices\\Transplants),\"\",sel_Crop_Practices\\Transplants)","v":"Not clean"}]
["Field\\Soil_Drainage",1,"Poor",10,null,null,null,"Field\\Soil_Drainage",10,-5,{"$f":"getRiskValue(\"A:A\",H5,J5,L5,\"Single\")","v":10},{"$f":"IF(ISBLANK(sel_Field\\Soil_Drainage),\"\",sel_Field\\Soil_Drainage)","v":"Poor"}]
["Field\\Soil_Drainage",2,"Good to very good",-5,null,null,null,"Pest_History\\Phytophthora_Root_Rot",10,-5,{"$f":"getRiskValue(\"A:A\",H6,J6,L6,\"Single\")","v":10},{"$f":"IF(ISBLANK(sel_Pest_History\\Phytophthora_Root_Rot),\"\",sel_Pest_History\\Phytophthora_Root_Rot)","v":"Within last 2 years"}]
["Pest_History\\Phytophthora_Root_Rot",1,"Within last 2 years",10]
["Pest_History\\Phytophthora_Root_Rot",2,"Within 2 to 3 yeares",5,null,null,null,"Total",{"$f":"SUMIF(I3:I6,\">0\")","v":60},{"$f":"SUMIF(J3:J6,\">0\")","v":10},{"$f":"MAX(CRPHY_MinRiskIndex,SUM(K3:K6))","v":60}]
["Pest_History\\Phytophthora_Root_Rot",3,"More than 5 years ago",0]
["Pest_History\\Phytophthora_Root_Rot",4,"Never",-5,null,null,null,"High Risk Index",30]
["Pest_Management\\Fungicides",1,"None",30,null,null,null,"Moderate Risk Index",15]
["Pest_Management\\Fungicides",2,"1 recommended",15]
["Pest_Management\\Fungicides",3,"2 to 3 recommended|4 to 5 recommended|6 or more recommended",10]

{"sheet":"ITSSM","index":28,"n_rows":19,"n_cols":12,"rows_kept":19,"cut":false,"hidden":true,"merged":[[0,0,0,3]]}
["Two Spotted Spider Mite"]
["Category","Risk Level","Risk Level Description","Points",null,null,null,"Category","Max","Min","Risk","Selection"]
["Crop_Practices\\Rotation_Period",1,"Continuous",15,null,null,null,"Weather_Conditions\\Moisture",20,0,{"$f":"getRiskValue(\"A:A\",H3,J3,L3,\"Single\")","v":10},{"$f":"IF(ISBLANK(sel_Weather_Conditions\\Moisture),\"\",sel_Weather_Conditions\\Moisture)","v":"Adequate"}]
["Crop_Practices\\Rotation_Period",2,"1 year",10,null,null,null,"Crop_Practices\\Rotation_Period",15,0,{"$f":"getRiskValue(\"A:A\",H4,J4,L4,\"Single\")","v":15},{"$f":"IF(ISBLANK(sel_Crop_Practices\\Rotation_Period),\"\",sel_Crop_Practices\\Rotation_Period)","v":"Continuous"}]
["Crop_Practices\\Rotation_Period",3,"2 years|3 years",5,null,null,null,"Weather_Conditions\\Temperature",12,4,{"$f":"getRiskValue(\"A:A\",H5,J5,L5,\"Single\")","v":8},{"$f":"IF(ISBLANK(sel_Weather_Conditions\\Temperature),\"\",sel_Weather_Conditions\\Temperature)","v":"Normal"}]
["Crop_Practices\\Rotation_Period",4,"4 or more years",0,null,null,null,"Field\\Weed_Presence",10,0,{"$f":"getRiskValue(\"A:A\",H6,J6,L6,\"Single\")","v":10},{"$f":"IF(ISBLANK(sel_Field\\Weed_Presence),\"\",sel_Field\\Weed_Presence)","v":"High"}]
["Field\\Weed_Presence",1,"High",10,null,null,null,"Pest_Management\\Insecticides",10,-10,{"$f":"getRiskValue(\"A:A\",H7,J7,L7,\"Single\")","v":10},{"$f":"IF(ISBLANK(sel_Pest_Management\\Insecticides),\"\",sel_Pest_Management\\Insecticides)","v":"None"}]
["Field\\Weed_Presence",2,"Moderate",5]
["Field\\Weed_Presence",3,"Low",0,null,null,null,"Total",{"$f":"SUMIF(I3:I7,\">0\")","v":67},{"$f":"SUMIF(J3:J7,\">0\")","v":4},{"$f":"MAX(ITSSM_MinRiskIndex,SUM(K3:K7))","v":53}]
["Pest_Management\\Insecticides",1,"None",10]
["Pest_Management\\Insecticides",2,"1 to 2 recommended",5,null,null,null,"High Risk Index",40]
["Pest_Management\\Insecticides",3,"3 to 4 recommended",-5,null,null,null,"Moderate Risk Index",20]
["Pest_Management\\Insecticides",4,"5 or more recommended",-10]
["Weather_Conditions\\Moisture",1,"Dry",20]
["Weather_Conditions\\Moisture",2,"Adequate",10]
["Weather_Conditions\\Moisture",3,"Wet/Humid",0]
["Weather_Conditions\\Temperature",1,"Warm/Hot",12]
["Weather_Conditions\\Temperature",2,"Normal",8]
["Weather_Conditions\\Temperature",3,"Cool",4]